Workbook

Sheet Отчет
A1: Текущий рейтинг студентов (до пересдач) | K1: Приложение 3
A2: Дата выгрузки: 18.01.2017 | K2: к Положению о рейтинговой системе комплексной оценки знаний студентов
A3: Период: c 2016/2017 учебный год I семестр по 2016/2017 учебный год I семестр
A4: Факультет/отделение: Факультет коммуникаций, медиа и дизайна
A5: Направление подготовки: Реклама и связи с общественностью
A6: Уровень образования, номер курса: Бакалавриат 2 курс | P6: - студенты имеющие задолженности
O7: * | P7: - изучение по ИУП
A8: Место | B8: Студент | C8: Группа | D8: Образовательная программа студента | E8: Кредитно-рейтинговая оценка | F8: Нормировочный коэффициент | G8: Сумма всех кредитов | H8: Нормированная кредитно-рейтинговая оценка | I8: Сумма всех оценок | J8: Количество всех оценок | K8: Средний балл | L8: Минимальный балл | M8: Наличие неудовлетворительных оценок и неявок | N8: Количество удовлетворительных оценок | O8: 2016/2017 учебный год 1 модуль | S8: 2016/2017 учебный год 2 модуль | AV8: Номер места
O9: Экзамен | R9: Зачет | S9: Экзамен | AT9: Зачет
O10: Безопасность жизнедеятельности | P10: Логика | Q10: Основы маркетинга | R10: Основы маркетинга | S10: Английский язык | T10: Астрофизика | U10: Введение в программирование | V10: Введение в специальность | W10: Введение в урбанистику | X10: Великие книги западной литературы от Гомера до Ницше | Y10: История | Z10: История коммуникаций | AA10: История международных отношений | AB10: Культура современных обществ: социологический анализ. | AC10: Логика и основы критического мышления | AD10: Микроэкономика | AE10: Научно-исследовательский семинар | AF10: Научно-исследовательский семинар | AG10: Научно-исследовательский семинар | AH10: Основы права | AI10: Основы теории коммуникаций (Часть 1) | AJ10: Основы теории организации и управление персоналом | AK10: Правовые основы бизнеса | AL10: Психология личности и индивидуальных различий | AM10: Современная российская политика | AN10: Современные информационные технологии | AO10: Современный культурный процесс | AP10: Социология массовых коммуникаций | AQ10: Теория государства и права | AR10: Теория государства и права | AS10: Философия | AT10: Научно-исследовательский семинар | AU10: Физическая культура
A11: Число текущих кредитов: | O11: 1 | P11: 3 | Q11: 3 | R11: 3 | S11: 4 | T11: 5 | U11: 5 | V11: 5 | W11: 5 | X11: 5 | Y11: 4 | Z11: 4 | AA11: 5 | AB11: 5 | AC11: 5 | AD11: 5 | AE11: 1.33 | AF11: 2 | AG11: 2.08 | AH11: 5 | AI11: 3 | AJ11: 5 | AK11: 5 | AL11: 5 | AM11: 5 | AN11: 5 | AO11: 5 | AP11: 3 | AQ11: 3 | AR11: 4 | AS11: 4 | AT11: 2 | AU11: 0
A12: 1 | B12: Мазур Екатерина Сергеевна | C12: БРО151 | D12: Реклама и связи с общественностью | E12: 224 | F12: =IF(G12 > 0, MAX(G$12:G$110) / G12, 0) -> 1.655652174 | G12: 23 | H12: =E12*F12 -> 370.866087 | I12: 78 | J12: 8 | K12: =IF(J12 > 0,I12/J12,0) -> 9.75 | L12: =MIN($O12:AU12) -> 9 | N12: 8 | Q12: 10 | S12: 10 | AB12: 10 | AF12: 10 | AI12: 9 | AP12: 10 | AQ12: 9 | AU12: + | AV12: 1 | AW12: ОК
A13: 2 | B13: Бешанова Елизавета Вячеславовна | C13: БРО152 | D13: Реклама и связи с общественностью | E13: 209 | F13: =IF(G13 > 0, MAX(G$12:G$110) / G13, 0) -> 1.655652174 | G13: 23 | H13: =E13*F13 -> 346.0313043 | I13: 63 | J13: 7 | K13: =IF(J13 > 0,I13/J13,0) -> 9 | L13: =MIN($O13:AU13) -> 8 | N13: 7 | Q13: 9 | S13: 10 | AA13: 9 | AF13: 8 | AI13: 9 | AP13: 9 | AQ13: 9 | AU13: + | AV13: 2 | AW13: ОК
A14: 3 | B14: Щелкунов Игорь Владимирович | C14: БРО153 | D14: Реклама и связи с общественностью | E14: 202 | F14: =IF(G14 > 0, MAX(G$12:G$110) / G14, 0) -> 1.655652174 | G14: 23 | H14: =E14*F14 -> 334.4417391 | I14: 61 | J14: 7 | K14: =IF(J14 > 0,I14/J14,0) -> 8.714285714 | L14: =MIN($O14:AU14) -> 7 | N14: 7 | Q14: 9 | S14: 10 | W14: 9 | AF14: 9 | AI14: 9 | AP14: 8 | AQ14: 7 | AU14: + | AV14: 3 | AW14: ОК
A15: 4 - 6 | B15: Калабаева Дарья Андреевна | C15: БРО152 | D15: Реклама и связи с общественностью | E15: 201 | F15: =IF(G15 > 0, MAX(G$12:G$110) / G15, 0) -> 1.655652174 | G15: 23 | H15: =E15*F15 -> 332.786087 | I15: 61 | J15: 7 | K15: =IF(J15 > 0,I15/J15,0) -> 8.714285714 | L15: =MIN($O15:AU15) -> 8 | N15: 7 | Q15: 10 | S15: 9 | AF15: 9 | AI15: 8 | AO15: 9 | AP15: 8 | AQ15: 8 | AU15: + | AV15: 4 | AW15: ОК
B16: Кимлык Мария Андреевна | C16: БРО153 | D16: Реклама и связи с общественностью | E16: 201 | F16: =IF(G16 > 0, MAX(G$12:G$110) / G16, 0) -> 1.655652174 | G16: 23 | H16: =E16*F16 -> 332.786087 | I16: 61 | J16: 7 | K16: =IF(J16 > 0,I16/J16,0) -> 8.714285714 | L16: =MIN($O16:AU16) -> 8 | N16: 7 | Q16: 10 | S16: 8 | AF16: 8 | AI16: 9 | AK16: 9 | AP16: 9 | AQ16: 8 | AU16: + | AV16: 5 | AW16: ОК
B17: Курганова Диана Андреевна | C17: БРО153 | D17: Реклама и связи с общественностью | E17: 201 | F17: =IF(G17 > 0, MAX(G$12:G$110) / G17, 0) -> 1.655652174 | G17: 23 | H17: =E17*F17 -> 332.786087 | I17: 60 | J17: 7 | K17: =IF(J17 > 0,I17/J17,0) -> 8.571428571 | L17: =MIN($O17:AU17) -> 7 | N17: 7 | Q17: 10 | S17: 10 | AF17: 7 | AI17: 9 | AP17: 8 | AQ17: 7 | AU17: + | AV17: 6 | AW17: ОК
A18: 7 - 9 | B18: Попова Диана Александровна | C18: БРО152 | D18: Реклама и связи с общественностью | E18: 200 | F18: =IF(G18 > 0, MAX(G$12:G$110) / G18, 0) -> 1.655652174 | G18: 23 | H18: =E18*F18 -> 331.1304348 | I18: 61 | J18: 7 | K18: =IF(J18 > 0,I18/J18,0) -> 8.714285714 | L18: =MIN($O18:AU18) -> 8 | N18: 7 | Q18: 9 | S18: 8 | AA18: 9 | AF18: 9 | AI18: 9 | AP18: 9 | AQ18: 8 | AU18: + | AV18: 7 | AW18: ОК
B19: Мошева Анастасия Олеговна | C19: БРО153 | D19: Реклама и связи с общественностью | E19: 200 | F19: =IF(G19 > 0, MAX(G$12:G$110) / G19, 0) -> 1.655652174 | G19: 23 | H19: =E19*F19 -> 331.1304348 | I19: 60 | J19: 7 | K19: =IF(J19 > 0,I19/J19,0) -> 8.571428571 | L19: =MIN($O19:AU19) -> 6 | N19: 7 | Q19: 9 | S19: 10 | AD19: 9 | AF19: 8 | AI19: 9 | AP19: 9 | AQ19: 6 | AU19: + | AV19: 8 | AW19: ОК
B20: Гранина Дарья Константиновна | C20: БРО153 | D20: Реклама и связи с общественностью | E20: 200 | F20: =IF(G20 > 0, MAX(G$12:G$110) / G20, 0) -> 1.655652174 | G20: 23 | H20: =E20*F20 -> 331.1304348 | I20: 59 | J20: 7 | K20: =IF(J20 > 0,I20/J20,0) -> 8.428571429 | L20: =MIN($O20:AU20) -> 6 | N20: 7 | Q20: 8 | S20: 10 | W20: 10 | AF20: 7 | AI20: 9 | AP20: 9 | AQ20: 6 | AU20: + | AV20: 9 | AW20: ОК
A21: 10 | B21: Жарикова Анастасия Владимировна | C21: БРО152 | D21: Реклама и связи с общественностью | E21: 318.64 | F21: =IF(G21 > 0, MAX(G$12:G$110) / G21, 0) -> 1.026968716 | G21: 37.08 | H21: =E21*F21 -> 327.2333118 | I21: 95 | J21: 11 | K21: =IF(J21 > 0,I21/J21,0) -> 8.636363636 | L21: =MIN($O21:AU21) -> 8 | N21: 11 | P21: 7 * | Q21: 10 | S21: 8 | V21: 8 * | Y21: 7 * | AB21: 10 | AF21: 10 | AG21: 8 * | AI21: 9 | AP21: 9 | AQ21: 9 | AU21: + | AV21: 10 | AW21: ОК
A22: 11 - 12 | B22: Сковородина Елизавета Сергеевна | C22: БРО153 | D22: Реклама и связи с общественностью | E22: 196 | F22: =IF(G22 > 0, MAX(G$12:G$110) / G22, 0) -> 1.655652174 | G22: 23 | H22: =E22*F22 -> 324.5078261 | I22: 59 | J22: 7 | K22: =IF(J22 > 0,I22/J22,0) -> 8.428571429 | L22: =MIN($O22:AU22) -> 8 | N22: 7 | Q22: 8 | S22: 9 | AC22: 9 | AF22: 8 | AI22: 8 | AP22: 9 | AQ22: 8 | AU22: + | AV22: 11 | AW22: ОК
B23: Язькова Елизавета Алексеевна | C23: БРО153 | D23: Реклама и связи с общественностью | E23: 196 | F23: =IF(G23 > 0, MAX(G$12:G$110) / G23, 0) -> 1.655652174 | G23: 23 | H23: =E23*F23 -> 324.5078261 | I23: 59 | J23: 7 | K23: =IF(J23 > 0,I23/J23,0) -> 8.428571429 | L23: =MIN($O23:AU23) -> 7 | N23: 7 | Q23: 9 | S23: 9 | AF23: 8 | AI23: 9 | AK23: 9 | AP23: 8 | AQ23: 7 | AU23: + | AV23: 12 | AW23: ОК
A24: 13 | B24: Казакова Виктория Владимировна | C24: БРО151 | D24: Реклама и связи с общественностью | E24: 193 | F24: =IF(G24 > 0, MAX(G$12:G$110) / G24, 0) -> 1.655652174 | G24: 23 | H24: =E24*F24 -> 319.5408696 | I24: 59 | J24: 7 | K24: =IF(J24 > 0,I24/J24,0) -> 8.428571429 | L24: =MIN($O24:AU24) -> 7 | N24: 7 | Q24: 7 | S24: 9 | AB24: 8 | AF24: 9 | AI24: 9 | AP24: 9 | AQ24: 8 | AU24: + | AV24: 13 | AW24: ОК
A25: 14 - 15 | B25: Криницкая Анастасия Сергеевна | C25: БРО152 | D25: Реклама и связи с общественностью | E25: 190 | F25: =IF(G25 > 0, MAX(G$12:G$110) / G25, 0) -> 1.655652174 | G25: 23 | H25: =E25*F25 -> 314.573913 | I25: 58 | J25: 7 | K25: =IF(J25 > 0,I25/J25,0) -> 8.285714286 | L25: =MIN($O25:AU25) -> 6 | N25: 7 | Q25: 8 | S25: 6 | AF25: 8 | AI25: 9 | AP25: 10 | AQ25: 8 | AU25: + | AV25: 14 | AW25: ОК
B26: Никитина Валерия Дмитриевна | C26: БРО152 | D26: Реклама и связи с общественностью | E26: 190 | F26: =IF(G26 > 0, MAX(G$12:G$110) / G26, 0) -> 1.655652174 | G26: 23 | H26: =E26*F26 -> 314.573913 | I26: 58 | J26: 7 | K26: =IF(J26 > 0,I26/J26,0) -> 8.285714286 | L26: =MIN($O26:AU26) -> 6 | N26: 7 | Q26: 9 | S26: 9 | AA26: 8 | AF26: 9 | AI26: 8 | AP26: 9 | AQ26: 6 | AU26: + | AV26: 15 | AW26: ОК
A27: 16 | B27: Колганова Полина Олеговна | C27: БРО151 | D27: Реклама и связи с общественностью | E27: 188 | F27: =IF(G27 > 0, MAX(G$12:G$110) / G27, 0) -> 1.655652174 | G27: 23 | H27: =E27*F27 -> 311.2626087 | I27: 57 | J27: 7 | K27: =IF(J27 > 0,I27/J27,0) -> 8.142857143 | L27: =MIN($O27:AU27) -> 7 | N27: 7 | Q27: 9 | S27: 9 | AB27: 8 | AF27: 8 | AI27: 8 | AP27: 8 | AQ27: 7 | AU27: + | AV27: 16 | AW27: ОК
A28: 17 | B28: Садова Анастасия Романовна | C28: БРО151 | D28: Реклама и связи с общественностью | E28: 187 | F28: =IF(G28 > 0, MAX(G$12:G$110) / G28, 0) -> 1.655652174 | G28: 23 | H28: =E28*F28 -> 309.6069565 | I28: 56 | J28: 7 | K28: =IF(J28 > 0,I28/J28,0) -> 8 | L28: =MIN($O28:AU28) -> 6 | N28: 7 | Q28: 9 | S28: 7 | AF28: 6 | AI28: 8 | AL28: 9 | AP28: 9 | AQ28: 8 | AU28: + | AV28: 17 | AW28: ОК
A29: 18 | B29: Радченко Ирина Дмитриевна | C29: БРО152 | D29: Реклама и связи с общественностью | E29: 154 | F29: =IF(G29 > 0, MAX(G$12:G$110) / G29, 0) -> 2.004210526 | G29: 19 | H29: =E29*F29 -> 308.6484211 | I29: 48 | J29: 6 | K29: =IF(J29 > 0,I29/J29,0) -> 8 | L29: =MIN($O29:AU29) -> 6 | N29: 6 | Q29: 8 | AF29: 8 | AI29: 9 | AP29: 8 | AQ29: 6 | AU29: + | AV29: 18 | AW29: ОК
A30: 19 | B30: Янчева Анастасия Вадимовна | C30: БРО153 | D30: Реклама и связи с общественностью | E30: 186 | F30: =IF(G30 > 0, MAX(G$12:G$110) / G30, 0) -> 1.655652174 | G30: 23 | H30: =E30*F30 -> 307.9513043 | I30: 57 | J30: 7 | K30: =IF(J30 > 0,I30/J30,0) -> 8.142857143 | L30: =MIN($O30:AU30) -> 6 | N30: 7 | Q30: 7 | S30: 10 | AD30: 7 | AF30: 9 | AI30: 9 | AP30: 9 | AQ30: 6 | AU30: + | AV30: 19 | AW30: ОК
A31: 20 - 21 | B31: Радионова Анна Евгеньевна | C31: БРО152 | D31: Реклама и связи с общественностью | E31: 185 | F31: =IF(G31 > 0, MAX(G$12:G$110) / G31, 0) -> 1.655652174 | G31: 23 | H31: =E31*F31 -> 306.2956522 | I31: 57 | J31: 7 | K31: =IF(J31 > 0,I31/J31,0) -> 8.142857143 | L31: =MIN($O31:AU31) -> 6 | N31: 7 | Q31: 9 | S31: 6 | AF31: 8 | AI31: 9 | AK31: 8 | AP31: 9 | AQ31: 8 | AU31: + | AV31: 20 | AW31: ОК
B32: Никоненко Анастасия Германовна | C32: БРО153 | D32: Реклама и связи с общественностью | E32: 185 | F32: =IF(G32 > 0, MAX(G$12:G$110) / G32, 0) -> 1.655652174 | G32: 23 | H32: =E32*F32 -> 306.2956522 | I32: 56 | J32: 7 | K32: =IF(J32 > 0,I32/J32,0) -> 8 | L32: =MIN($O32:AU32) -> 7 | N32: 7 | Q32: 10 | S32: 8 | AF32: 7 | AI32: 7 | AO32: 8 | AP32: 8 | AQ32: 8 | AU32: + | AV32: 21 | AW32: ОК
A33: 22 - 23 | B33: Ленкуте Алина Максимовна | C33: БРО152 | D33: Реклама и связи с общественностью | E33: 184 | F33: =IF(G33 > 0, MAX(G$12:G$110) / G33, 0) -> 1.655652174 | G33: 23 | H33: =E33*F33 -> 304.64 | I33: 57 | J33: 7 | K33: =IF(J33 > 0,I33/J33,0) -> 8.142857143 | L33: =MIN($O33:AU33) -> 7 | N33: 7 | Q33: 8 | S33: 8 | AB33: 7 | AF33: 9 | AI33: 8 | AP33: 10 | AQ33: 7 | AU33: + | AV33: 22 | AW33: ОК
B34: Шельменкина Карина Сергеевна | C34: БРО153 | D34: Реклама и связи с общественностью | E34: 184 | F34: =IF(G34 > 0, MAX(G$12:G$110) / G34, 0) -> 1.655652174 | G34: 23 | H34: =E34*F34 -> 304.64 | I34: 56 | J34: 7 | K34: =IF(J34 > 0,I34/J34,0) -> 8 | L34: =MIN($O34:AU34) -> 6 | N34: 7 | Q34: 9 | S34: 8 | AD34: 8 | AF34: 8 | AI34: 8 | AP34: 9 | AQ34: 6 | AU34: + | AV34: 23 | AW34: ОК
A35: 24 - 26 | B35: Солдатенкова Арина Витальевна | C35: БРО151 | D35: Реклама и связи с общественностью | E35: 182 | F35: =IF(G35 > 0, MAX(G$12:G$110) / G35, 0) -> 1.655652174 | G35: 23 | H35: =E35*F35 -> 301.3286957 | I35: 56 | J35: 7 | K35: =IF(J35 > 0,I35/J35,0) -> 8 | L35: =MIN($O35:AU35) -> 7 | N35: 7 | Q35: 9 | S35: 8 | AF35: 8 | AI35: 9 | AO35: 7 | AP35: 8 | AQ35: 7 | AU35: + | AV35: 24 | AW35: ОК
B36: Ужегова Полина Александровна | C36: БРО151 | D36: Реклама и связи с общественностью | E36: 182 | F36: =IF(G36 > 0, MAX(G$12:G$110) / G36, 0) -> 1.655652174 | G36: 23 | H36: =E36*F36 -> 301.3286957 | I36: 56 | J36: 7 | K36: =IF(J36 > 0,I36/J36,0) -> 8 | L36: =MIN($O36:AU36) -> 7 | N36: 7 | Q36: 10 | S36: 7 | AF36: 7 | AI36: 9 | AM36: 7 | AP36: 8 | AQ36: 8 | AU36: + | AV36: 25 | AW36: ОК
B37: Гришина Мария Сергеевна | C37: БРО153 | D37: Реклама и связи с общественностью | E37: 182 | F37: =IF(G37 > 0, MAX(G$12:G$110) / G37, 0) -> 1.655652174 | G37: 23 | H37: =E37*F37 -> 301.3286957 | I37: 54 | J37: 7 | K37: =IF(J37 > 0,I37/J37,0) -> 7.714285714 | L37: =MIN($O37:AU37) -> 5 | N37: 7 | Q37: 8 | S37: 9 | AC37: 9 | AF37: 7 | AI37: 8 | AP37: 8 | AQ37: 5 | AU37: + | AV37: 26 | AW37: ОК
A38: 27 | B38: Богданова Владлена Сергеевна | C38: БРО152 | D38: Реклама и связи с общественностью | E38: 180 | F38: =IF(G38 > 0, MAX(G$12:G$110) / G38, 0) -> 1.655652174 | G38: 23 | H38: =E38*F38 -> 298.0173913 | I38: 54 | J38: 7 | K38: =IF(J38 > 0,I38/J38,0) -> 7.714285714 | L38: =MIN($O38:AU38) -> 6 | N38: 7 | Q38: 8 | S38: 8 | AF38: 6 | AH38: 8 | AI38: 7 | AP38: 9 | AQ38: 8 | AU38: + | AV38: 27 | AW38: ОК
A39: 28 - 29 | B39: Милова Анастасия Андреевна | C39: БРО151 | D39: Реклама и связи с общественностью | E39: 179 | F39: =IF(G39 > 0, MAX(G$12:G$110) / G39, 0) -> 1.655652174 | G39: 23 | H39: =E39*F39 -> 296.3617391 | I39: 63 | J39: 8 | K39: =IF(J39 > 0,I39/J39,0) -> 7.875 | L39: =MIN($O39:AU39) -> 6 | N39: 8 | Q39: 9 | S39: 8 | AB39: 8 | AF39: 7 | AI39: 8 | AP39: 8 | AQ39: 6 | AU39: + | AV39: 28 | AW39: ОК
B40: Серегин Геннадий Евгеньевич | C40: БРО152 | D40: Реклама и связи с общественностью | E40: 179 | F40: =IF(G40 > 0, MAX(G$12:G$110) / G40, 0) -> 1.655652174 | G40: 23 | H40: =E40*F40 -> 296.3617391 | I40: 55 | J40: 7 | K40: =IF(J40 > 0,I40/J40,0) -> 7.857142857 | L40: =MIN($O40:AU40) -> 7 | N40: 7 | Q40: 8 | S40: 8 | AD40: 7 | AF40: 8 | AI40: 7 | AP40: 8 | AQ40: 9 | AU40: + | AV40: 29 | AW40: ОК
A41: 30 | B41: Коломиец Ольга Андреевна | C41: БРО153 | D41: Реклама и связи с общественностью | E41: 217 | F41: =IF(G41 > 0, MAX(G$12:G$110) / G41, 0) -> 1.36 | G41: 28 | H41: =E41*F41 -> 295.12 | I41: 62 | J41: 8 | K41: =IF(J41 > 0,I41/J41,0) -> 7.75 | L41: =MIN($O41:AU41) -> 6 | N41: 8 | Q41: 8 | S41: 10 | V41: 6 * | AF41: 7 | AI41: 6 | AO41: 8 | AP41: 9 | AR41: 8 | AU41: + | AV41: 30 | AW41: ОК
A42: 31 | B42: Чуб Степан Александрович | C42: БРО152 | D42: Реклама и связи с общественностью | E42: 230.64 | F42: =IF(G42 > 0, MAX(G$12:G$110) / G42, 0) -> 1.265957447 | G42: 30.08 | H42: =E42*F42 -> 291.9804255 | I42: 78 | J42: 10 | K42: =IF(J42 > 0,I42/J42,0) -> 7.8 | L42: =MIN($O42:AU42) -> 6 | N42: 10 | Q42: 7 | S42: 8 | V42: 6 * | AB42: 10 | AF42: 6 | AG42: 8 * | AI42: 8 | AP42: 7 | AR42: 8 | AU42: + | AV42: 31 | AW42: ОК
A43: 32 | B43: Романовская Алина Андреевна | C43: БРО151 | D43: Реклама и связи с общественностью | E43: 176 | F43: =IF(G43 > 0, MAX(G$12:G$110) / G43, 0) -> 1.655652174 | G43: 23 | H43: =E43*F43 -> 291.3947826 | I43: 55 | J43: 7 | K43: =IF(J43 > 0,I43/J43,0) -> 7.857142857 | L43: =MIN($O43:AU43) -> 6 | N43: 7 | Q43: 9 | S43: 6 | W43: 7 | AF43: 9 | AI43: 9 | AP43: 9 | AQ43: 6 | AU43: + | AV43: 32 | AW43: ОК
A44: 33 - 35 | B44: Дроздова Елизавета Владимировна | C44: БРО153 | D44: Реклама и связи с общественностью | E44: 174 | F44: =IF(G44 > 0, MAX(G$12:G$110) / G44, 0) -> 1.655652174 | G44: 23 | H44: =E44*F44 -> 288.0834783 | I44: 53 | J44: 7 | K44: =IF(J44 > 0,I44/J44,0) -> 7.571428571 | L44: =MIN($O44:AU44) -> 6 | N44: 7 | Q44: 9 | S44: 6 | AD44: 8 | AF44: 7 | AI44: 8 | AP44: 8 | AQ44: 7 | AU44: + | AV44: 33 | AW44: ОК
B45: Скворцова Анна Алексеевна | C45: БРО153 | D45: Реклама и связи с общественностью | E45: 174 | F45: =IF(G45 > 0, MAX(G$12:G$110) / G45, 0) -> 1.655652174 | G45: 23 | H45: =E45*F45 -> 288.0834783 | I45: 53 | J45: 7 | K45: =IF(J45 > 0,I45/J45,0) -> 7.571428571 | L45: =MIN($O45:AU45) -> 7 | N45: 7 | Q45: 9 | S45: 8 | AF45: 7 | AH45: 7 | AI45: 7 | AP45: 7 | AQ45: 8 | AU45: + | AV45: 34 | AW45: ОК
B46: Даниель Александра Александровна | C46: БРО151 | D46: Реклама и связи с общественностью | E46: 174 | F46: =IF(G46 > 0, MAX(G$12:G$110) / G46, 0) -> 1.655652174 | G46: 23 | H46: =E46*F46 -> 288.0834783 | I46: 60 | J46: 8 | K46: =IF(J46 > 0,I46/J46,0) -> 7.5 | L46: =MIN($O46:AU46) -> 6 | N46: 8 | Q46: 8 | S46: 6 | AF46: 6 | AI46: 8 | AO46: 9 | AP46: 8 | AQ46: 7 | AU46: + | AV46: 35 | AW46: ОК
A47: 36 - 38 | B47: Веряева Ксения Михайловна | C47: БРО152 | D47: Реклама и связи с общественностью | E47: 172 | F47: =IF(G47 > 0, MAX(G$12:G$110) / G47, 0) -> 1.655652174 | G47: 23 | H47: =E47*F47 -> 284.7721739 | I47: 53 | J47: 7 | K47: =IF(J47 > 0,I47/J47,0) -> 7.571428571 | L47: =MIN($O47:AU47) -> 6 | N47: 7 | Q47: 8 | S47: 9 | AB47: 6 | AF47: 8 | AI47: 8 | AP47: 8 | AQ47: 6 | AU47: + | AV47: 36 | AW47: ОК
B48: Панарина Елизавета Сергеевна | C48: БРО151 | D48: Реклама и связи с общественностью | E48: 172 | F48: =IF(G48 > 0, MAX(G$12:G$110) / G48, 0) -> 1.655652174 | G48: 23 | H48: =E48*F48 -> 284.7721739 | I48: 53 | J48: 7 | K48: =IF(J48 > 0,I48/J48,0) -> 7.571428571 | L48: =MIN($O48:AU48) -> 6 | N48: 7 | Q48: 8 | S48: 7 | W48: 7 | AF48: 8 | AI48: 8 | AP48: 9 | AQ48: 6 | AU48: + | AV48: 37 | AW48: ОК
B49: Пономарева Елизавета | C49: БРО151 | D49: Реклама и связи с общественностью | E49: 172 | F49: =IF(G49 > 0, MAX(G$12:G$110) / G49, 0) -> 1.655652174 | G49: 23 | H49: =E49*F49 -> 284.7721739 | I49: 53 | J49: 7 | K49: =IF(J49 > 0,I49/J49,0) -> 7.571428571 | L49: =MIN($O49:AU49) -> 6 | N49: 7 | Q49: 9 | S49: 8 | U49: 6 | AF49: 7 | AI49: 8 | AP49: 8 | AQ49: 7 | AU49: + | AV49: 38 | AW49: ОК
A50: 39 - 40 | B50: Астурян Вячеслав Вячеславович | C50: БРО152 | D50: Реклама и связи с общественностью | E50: 168 | F50: =IF(G50 > 0, MAX(G$12:G$110) / G50, 0) -> 1.655652174 | G50: 23 | H50: =E50*F50 -> 278.1495652 | I50: 52 | J50: 7 | K50: =IF(J50 > 0,I50/J50,0) -> 7.428571429 | L50: =MIN($O50:AU50) -> 6 | N50: 7 | Q50: 9 | S50: 8 | AB50: 6 | AF50: 8 | AI50: 8 | AP50: 7 | AQ50: 6 | AU50: + | AV50: 39 | AW50: ОК
B51: Толбухина Полина Дмитриевна | C51: БРО153 | D51: Реклама и связи с общественностью | E51: 168 | F51: =IF(G51 > 0, MAX(G$12:G$110) / G51, 0) -> 1.655652174 | G51: 23 | H51: =E51*F51 -> 278.1495652 | I51: 51 | J51: 7 | K51: =IF(J51 > 0,I51/J51,0) -> 7.285714286 | L51: =MIN($O51:AU51) -> 6 | N51: 7 | Q51: 8 | S51: 8 | AF51: 7 | AI51: 8 | AM51: 7 | AP51: 7 | AQ51: 6 | AU51: + | AV51: 40 | AW51: ОК
A52: 41 | B52: Гридчина Нина Сергеевна | C52: БРО153 | D52: Реклама и связи с общественностью | E52: 248.64 | F52: =IF(G52 > 0, MAX(G$12:G$110) / G52, 0) -> 1.117370892 | G52: 34.08 | H52: =E52*F52 -> 277.8230986 | I52: 83 | J52: 11 | K52: =IF(J52 > 0,I52/J52,0) -> 7.545454545 | L52: =MIN($O52:AU52) -> 7 | N52: 11 | O52: 9 * | P52: 4 * | Q52: 9 | V52: 6 * | AF52: 9 | AG52: 8 * | AI52: 7 | AO52: 8 | AP52: 9 | AQ52: 8 | AS52: 6 * | AU52: + | AV52: 41 | AW52: ОК
A53: 42 | B53: Жаркова Дарья Андреевна | C53: БРО153 | D53: Реклама и связи с общественностью | E53: 277.56 | F53: =IF(G53 > 0, MAX(G$12:G$110) / G53, 0) -> 1 | G53: 38.08 | H53: =E53*F53 -> 277.56 | I53: 78 | J53: 11 | K53: =IF(J53 > 0,I53/J53,0) -> 7.090909091 | L53: =MIN($O53:AU53) -> 6 | N53: 11 | Q53: 7 | S53: 8 | V53: 8 * | Y53: 7 * | AF53: 6 | AG53: 7 * | AI53: 6 | AP53: 7 | AQ53: 6 | AS53: 7 * | AU53: + | AV53: 42 | AW53: ОК
A54: 43 - 44 | B54: Тузова Евгения Сергеевна | C54: БРО152 | D54: Реклама и связи с общественностью | E54: 165 | F54: =IF(G54 > 0, MAX(G$12:G$110) / G54, 0) -> 1.655652174 | G54: 23 | H54: =E54*F54 -> 273.1826087 | I54: 48 | J54: 6 | K54: =IF(J54 > 0,I54/J54,0) -> 8 | L54: =MIN($O54:AU54) -> 6 | M54: Да | N54: 6 | Q54: 8 | S54: 9 | W54: 9 | AF54: 6 | AI54: 8 | AP54: 8 | AQ54: н/я (ув) | AU54: + | AV54: 43 | AW54: ОК
B55: Кунцевич Мария | C55: БРО153 | D55: Реклама и связи с общественностью | E55: 165 | F55: =IF(G55 > 0, MAX(G$12:G$110) / G55, 0) -> 1.655652174 | G55: 23 | H55: =E55*F55 -> 273.1826087 | I55: 50 | J55: 7 | K55: =IF(J55 > 0,I55/J55,0) -> 7.142857143 | L55: =MIN($O55:AU55) -> 6 | N55: 7 | Q55: 8 | S55: 6 | AF55: 7 | AI55: 8 | AL55: 8 | AP55: 7 | AQ55: 6 | AU55: + | AV55: 44 | AW55: ОК
A56: 45 | B56: Чернышева Юлия Ивановна | C56: БРО151 | D56: Реклама и связи с общественностью | E56: 264.56 | F56: =IF(G56 > 0, MAX(G$12:G$110) / G56, 0) -> 1.026968716 | G56: 37.08 | H56: =E56*F56 -> 271.6948436 | I56: 79 | J56: 11 | K56: =IF(J56 > 0,I56/J56,0) -> 7.181818182 | L56: =MIN($O56:AU56) -> 7 | N56: 11 | P56: 5 * | Q56: 8 | S56: 7 | V56: 5 * | AF56: 8 | AG56: 7 * | AI56: 8 | AP56: 8 | AQ56: 7 | AS56: 7 * | AU56: + | AV56: 45 | AW56: ОК
A57: 46 | B57: Надирова Анна Зурабовна | C57: БРО151 | D57: Реклама и связи с общественностью | E57: 161 | F57: =IF(G57 > 0, MAX(G$12:G$110) / G57, 0) -> 1.655652174 | G57: 23 | H57: =E57*F57 -> 266.56 | I57: 49 | J57: 7 | K57: =IF(J57 > 0,I57/J57,0) -> 7 | L57: =MIN($O57:AU57) -> 5 | N57: 7 | Q57: 8 | S57: 8 | AB57: 6 | AF57: 6 | AI57: 8 | AP57: 8 | AQ57: 5 | AU57: + | AV57: 46 | AW57: ОК
A58: 47 | B58: Барыкина Александра Сергеевна | C58: БРО151 | D58: Реклама и связи с общественностью | E58: 160 | F58: =IF(G58 > 0, MAX(G$12:G$110) / G58, 0) -> 1.655652174 | G58: 23 | H58: =E58*F58 -> 264.9043478 | I58: 48 | J58: 7 | K58: =IF(J58 > 0,I58/J58,0) -> 6.857142857 | L58: =MIN($O58:AU58) -> 3 | M58: Да | N58: 6 | Q58: 8 | S58: 8 | AF58: 6 | AI58: 8 | AO58: 7 | AP58: 8 | AQ58: 3 | AU58: + | AV58: 47 | AW58: ОК
A59: 48 | B59: Ковалева Анастасия Романовна | C59: БРО152 | D59: Реклама и связи с общественностью | E59: 132 | F59: =IF(G59 > 0, MAX(G$12:G$110) / G59, 0) -> 2.004210526 | G59: 19 | H59: =E59*F59 -> 264.5557895 | I59: 40 | J59: 7 | K59: =IF(J59 > 0,I59/J59,0) -> 5.714285714 | L59: =MIN($O59:AU59) -> 4 | N59: 6 | Q59: 8 | W59: 8 | AF59: 4 | AI59: 7 | AP59: 7 | AQ59: 6 | AU59: + | AV59: 48 | AW59: ОК
A60: 49 | B60: Смирнова Полина Алексеевна | C60: БРО151 | D60: Реклама и связи с общественностью | E60: 159 | F60: =IF(G60 > 0, MAX(G$12:G$110) / G60, 0) -> 1.655652174 | G60: 23 | H60: =E60*F60 -> 263.2486957 | I60: 49 | J60: 7 | K60: =IF(J60 > 0,I60/J60,0) -> 7 | L60: =MIN($O60:AU60) -> 3 | M60: Да | N60: 6 | Q60: 8 | S60: 8 | AF60: 8 | AI60: 7 | AM60: 6 | AP60: 9 | AQ60: 3 | AU60: + | AV60: 49 | AW60: ОК
A61: 50 | B61: Романова Екатерина Сергеевна | C61: БРО153 | D61: Реклама и связи с общественностью | E61: 131 | F61: =IF(G61 > 0, MAX(G$12:G$110) / G61, 0) -> 2.004210526 | G61: 19 | H61: =E61*F61 -> 262.5515789 | I61: 42 | J61: 6 | K61: =IF(J61 > 0,I61/J61,0) -> 7 | L61: =MIN($O61:AU61) -> 6 | N61: 6 | Q61: 9 | AF61: 7 | AI61: 7 | AK61: 6 | AP61: 7 | AQ61: 6 | AU61: + | AV61: 50 | AW61: ОК
A62: 51 - 52 | B62: Бекназарова Комилла Сохибжоновна | C62: БРО151 | D62: Реклама и связи с общественностью | E62: 158 | F62: =IF(G62 > 0, MAX(G$12:G$110) / G62, 0) -> 1.655652174 | G62: 23 | H62: =E62*F62 -> 261.5930435 | I62: 49 | J62: 7 | K62: =IF(J62 > 0,I62/J62,0) -> 7 | L62: =MIN($O62:AU62) -> 6 | N62: 7 | Q62: 7 | S62: 7 | AD62: 6 | AF62: 8 | AI62: 8 | AP62: 7 | AQ62: 6 | AU62: + | AV62: 51 | AW62: ОК
B63: Полякова Александра Дмитриевна | C63: БРО152 | D63: Реклама и связи с общественностью | E63: 158 | F63: =IF(G63 > 0, MAX(G$12:G$110) / G63, 0) -> 1.655652174 | G63: 23 | H63: =E63*F63 -> 261.5930435 | I63: 48 | J63: 7 | K63: =IF(J63 > 0,I63/J63,0) -> 6.857142857 | L63: =MIN($O63:AU63) -> 6 | N63: 7 | Q63: 7 | S63: 6 | AF63: 6 | AI63: 8 | AO63: 7 | AP63: 7 | AQ63: 7 | AU63: + | AV63: 52 | AW63: ОК
A64: 53 - 54 | B64: Мельник Алексей Сергеевич | C64: БРО153 | D64: Реклама и связи с общественностью | E64: 156 | F64: =IF(G64 > 0, MAX(G$12:G$110) / G64, 0) -> 1.655652174 | G64: 23 | H64: =E64*F64 -> 258.2817391 | I64: 48 | J64: 7 | K64: =IF(J64 > 0,I64/J64,0) -> 6.857142857 | L64: =MIN($O64:AU64) -> 6 | N64: 7 | Q64: 6 | S64: 6 | W64: 6 | AF64: 6 | AI64: 8 | AP64: 9 | AQ64: 7 | AU64: + | AV64: 53 | AW64: ОК
B65: Фролов Василий Александрович | C65: БРО152 | D65: Реклама и связи с общественностью | E65: 156 | F65: =IF(G65 > 0, MAX(G$12:G$110) / G65, 0) -> 1.655652174 | G65: 23 | H65: =E65*F65 -> 258.2817391 | I65: 47 | J65: 7 | K65: =IF(J65 > 0,I65/J65,0) -> 6.714285714 | L65: =MIN($O65:AU65) -> 5 | N65: 7 | Q65: 8 | S65: 5 | AF65: 6 | AI65: 7 | AK65: 8 | AP65: 7 | AQ65: 6 | AU65: + | AV65: 54 | AW65: ОК
A66: 55 | B66: Яснева Екатерина Андреевна | C66: БРО153 | D66: Реклама и связи с общественностью | E66: 203.56 | F66: =IF(G66 > 0, MAX(G$12:G$110) / G66, 0) -> 1.265957447 | G66: 30.08 | H66: =E66*F66 -> 257.6982979 | I66: 62 | J66: 9 | K66: =IF(J66 > 0,I66/J66,0) -> 6.888888889 | L66: =MIN($O66:AU66) -> 5 | N66: 9 | Q66: 10 | S66: 5 | V66: 6 * | AB66: 7 | AF66: 7 | AG66: 7 * | AI66: 7 | AP66: 7 | AQ66: 6 | AU66: + | AV66: 55 | AW66: ОК
A67: 56 - 57 | B67: Дремлюк Марья | C67: БРО153 | D67: Реклама и связи с общественностью | E67: 154 | F67: =IF(G67 > 0, MAX(G$12:G$110) / G67, 0) -> 1.655652174 | G67: 23 | H67: =E67*F67 -> 254.9704348 | I67: 48 | J67: 7 | K67: =IF(J67 > 0,I67/J67,0) -> 6.857142857 | L67: =MIN($O67:AU67) -> 5 | N67: 7 | Q67: 10 | S67: 6 | W67: 5 | AF67: 6 | AI67: 7 | AP67: 8 | AQ67: 6 | AU67: + | AV67: 56 | AW67: ОК
B68: Юрьева Мария Дмитриевна | C68: БРО153 | D68: Реклама и связи с общественностью | E68: 154 | F68: =IF(G68 > 0, MAX(G$12:G$110) / G68, 0) -> 1.655652174 | G68: 23 | H68: =E68*F68 -> 254.9704348 | I68: 48 | J68: 7 | K68: =IF(J68 > 0,I68/J68,0) -> 6.857142857 | L68: =MIN($O68:AU68) -> 5 | N68: 7 | Q68: 8 | S68: 7 | AB68: 5 | AF68: 7 | AI68: 7 | AP68: 7 | AQ68: 7 | AU68: + | AV68: 57 | AW68: ОК
A69: 58 - 59 | B69: Аккалаев Марат Русланович | C69: БРО151 | D69: Реклама и связи с общественностью | E69: 153 | F69: =IF(G69 > 0, MAX(G$12:G$110) / G69, 0) -> 1.655652174 | G69: 23 | H69: =E69*F69 -> 253.3147826 | I69: 47 | J69: 7 | K69: =IF(J69 > 0,I69/J69,0) -> 6.714285714 | L69: =MIN($O69:AU69) -> 6 | N69: 7 | Q69: 7 | S69: 8 | W69: 6 | AF69: 8 | AI69: 6 | AP69: 6 | AQ69: 6 | AU69: + | AV69: 58 | AW69: ОК
B70: Кравчук Кристина Александровна | C70: БРО153 | D70: Реклама и связи с общественностью | E70: 153 | F70: =IF(G70 > 0, MAX(G$12:G$110) / G70, 0) -> 1.655652174 | G70: 23 | H70: =E70*F70 -> 253.3147826 | I70: 47 | J70: 7 | K70: =IF(J70 > 0,I70/J70,0) -> 6.714285714 | L70: =MIN($O70:AU70) -> 6 | N70: 7 | Q70: 9 | S70: 6 | AF70: 6 | AI70: 7 | AJ70: 6 | AP70: 7 | AQ70: 6 | AU70: + | AV70: 59 | AW70: ОК
A71: 60 | B71: Сак Евгения Леонидовна | C71: БРО152 | D71: Реклама и связи с общественностью | E71: 152 | F71: =IF(G71 > 0, MAX(G$12:G$110) / G71, 0) -> 1.655652174 | G71: 23 | H71: =E71*F71 -> 251.6591304 | I71: 45 | J71: 7 | K71: =IF(J71 > 0,I71/J71,0) -> 6.428571429 | L71: =MIN($O71:AU71) -> 4 | N71: 7 | Q71: 8 | S71: 7 | AA71: 8 | AF71: 6 | AI71: 4 | AP71: 7 | AQ71: 5 | AU71: + | AV71: 60 | AW71: ОК
A72: 61 | B72: Бажулич Кристина Джуровна | C72: БРО151 | D72: Реклама и связи с общественностью | E72: 198.48 | F72: =IF(G72 > 0, MAX(G$12:G$110) / G72, 0) -> 1.265957447 | G72: 30.08 | H72: =E72*F72 -> 251.267234 | I72: 59 | J72: 9 | K72: =IF(J72 > 0,I72/J72,0) -> 6.555555556 | L72: =MIN($O72:AU72) -> 5 | N72: 9 | Q72: 8 | S72: 6 | V72: 5 * | AF72: 7 | AG72: 6 * | AI72: 7 | AP72: 5 | AQ72: 6 | AU72: + | AV72: 61 | AW72: ОК
A73: 62 | B73: Горохова Елизавета Юрьевна | C73: БРО153 | D73: Реклама и связи с общественностью | E73: 149 | F73: =IF(G73 > 0, MAX(G$12:G$110) / G73, 0) -> 1.655652174 | G73: 23 | H73: =E73*F73 -> 246.6921739 | I73: 44 | J73: 6 | K73: =IF(J73 > 0,I73/J73,0) -> 7.333333333 | L73: =MIN($O73:AU73) -> 6 | M73: Да | N73: 6 | Q73: н/я (ув) | S73: 6 | AF73: 7 | AI73: 7 | AP73: 8 | AQ73: 7 | AU73: + | AV73: 62 | AW73: ОК
A74: 63 | B74: Захряпина Анастасия Алексеевна | C74: БРО152 | D74: Реклама и связи с общественностью | E74: 148 | F74: =IF(G74 > 0, MAX(G$12:G$110) / G74, 0) -> 1.655652174 | G74: 23 | H74: =E74*F74 -> 245.0365217 | I74: 45 | J74: 7 | K74: =IF(J74 > 0,I74/J74,0) -> 6.428571429 | L74: =MIN($O74:AU74) -> 4 | N74: 7 | Q74: 8 | S74: 7 | AF74: 6 | AI74: 6 | AO74: 6 | AP74: 8 | AQ74: 4 | AU74: + | AV74: 63 | AW74: ОК
A75: 64 | B75: Белякова Анастасия | C75: БРО151 | D75: Реклама и связи с общественностью | E75: 146 | F75: =IF(G75 > 0, MAX(G$12:G$110) / G75, 0) -> 1.655652174 | G75: 23 | H75: =E75*F75 -> 241.7252174 | I75: 44 | J75: 7 | K75: =IF(J75 > 0,I75/J75,0) -> 6.285714286 | L75: =MIN($O75:AU75) -> 4 | N75: 7 | Q75: 7 | S75: 8 | AB75: 6 | AF75: 6 | AI75: 7 | AP75: 6 | AQ75: 4 | AU75: + | AV75: 64 | AW75: ОК
A76: 65 | B76: Абдулхакимова Афина Шавкатовна | C76: БРО151 | D76: Реклама и связи с общественностью | E76: 143 | F76: =IF(G76 > 0, MAX(G$12:G$110) / G76, 0) -> 1.655652174 | G76: 23 | H76: =E76*F76 -> 236.7582609 | I76: 43 | J76: 7 | K76: =IF(J76 > 0,I76/J76,0) -> 6.142857143 | L76: =MIN($O76:AU76) -> 3 | M76: Да | N76: 6 | Q76: 7 | S76: 8 | AF76: 6 | AI76: 7 | AO76: 6 | AP76: 6 | AQ76: 3 | AU76: + | AV76: 65 | AW76: ОК
A77: 66 | B77: Мухортова Дарья Александровна | C77: БРО152 | D77: Реклама и связи с общественностью | E77: 142 | F77: =IF(G77 > 0, MAX(G$12:G$110) / G77, 0) -> 1.655652174 | G77: 23 | H77: =E77*F77 -> 235.1026087 | I77: 41 | J77: 7 | K77: =IF(J77 > 0,I77/J77,0) -> 5.857142857 | L77: =MIN($O77:AU77) -> 3 | M77: Да | N77: 6 | Q77: 8 | S77: 8 | AF77: 3 | AI77: 5 | AK77: 7 | AP77: 6 | AQ77: 4 | AU77: + | AV77: 66 | AW77: ОК
A78: 67 | B78: Ганиева Карина Туребековна | C78: БРО151 | D78: Реклама и связи с общественностью | E78: 141 | F78: =IF(G78 > 0, MAX(G$12:G$110) / G78, 0) -> 1.655652174 | G78: 23 | H78: =E78*F78 -> 233.4469565 | I78: 43 | J78: 7 | K78: =IF(J78 > 0,I78/J78,0) -> 6.142857143 | L78: =MIN($O78:AU78) -> 3 | M78: Да | N78: 6 | Q78: 9 | S78: 6 | AF78: 6 | AH78: 6 | AI78: 6 | AP78: 7 | AQ78: 3 | AU78: + | AV78: 67 | AW78: ОК
A79: 68 | B79: Галкин Вячеслав Владимирович | C79: БРО153 | D79: Реклама и связи с общественностью | E79: 140 | F79: =IF(G79 > 0, MAX(G$12:G$110) / G79, 0) -> 1.655652174 | G79: 23 | H79: =E79*F79 -> 231.7913043 | I79: 48 | J79: 8 | K79: =IF(J79 > 0,I79/J79,0) -> 6 | L79: =MIN($O79:AU79) -> 4 | N79: 8 | Q79: 7 | S79: 4 | AF79: 5 | AI79: 4 | AP79: 8 | AQ79: 4 | AU79: + | AV79: 68 | AW79: ОК
A80: 69 - 70 | B80: Нафталиева Яна Абрамовна | C80: БРО152 | D80: Реклама и связи с общественностью | E80: 139 | F80: =IF(G80 > 0, MAX(G$12:G$110) / G80, 0) -> 1.655652174 | G80: 23 | H80: =E80*F80 -> 230.1356522 | I80: 40 | J80: 5 | K80: =IF(J80 > 0,I80/J80,0) -> 8 | L80: =MIN($O80:AU80) -> 7 | M80: Да | N80: 5 | Q80: 8 | S80: 8 | AA80: 9 | AF80: 7 | AI80: н/я (ув) | AP80: 8 | AQ80: н/я (ув) | AU80: + | AV80: 69 | AW80: ОК
B81: Ермаков Иван Григорьевич | C81: БРО151 | D81: Реклама и связи с общественностью | E81: 139 | F81: =IF(G81 > 0, MAX(G$12:G$110) / G81, 0) -> 1.655652174 | G81: 23 | H81: =E81*F81 -> 230.1356522 | I81: 43 | J81: 7 | K81: =IF(J81 > 0,I81/J81,0) -> 6.142857143 | L81: =MIN($O81:AU81) -> 5 | N81: 7 | Q81: 7 | S81: 6 | AF81: 6 | AH81: 5 | AI81: 6 | AP81: 8 | AQ81: 5 | AU81: + | AV81: 70 | AW81: ОК
A82: 71 | B82: Ковтун Юлия Алексеевна | C82: БРО153 | D82: Реклама и связи с общественностью | E82: 138 | F82: =IF(G82 > 0, MAX(G$12:G$110) / G82, 0) -> 1.655652174 | G82: 23 | H82: =E82*F82 -> 228.48 | I82: 41 | J82: 7 | K82: =IF(J82 > 0,I82/J82,0) -> 5.857142857 | L82: =MIN($O82:AU82) -> 3 | M82: Да | N82: 6 | Q82: 6 | S82: 6 | AF82: 5 | AI82: 6 | AN82: 7 | AP82: 8 | AQ82: 3 | AU82: + | AV82: 71
A83: 72 | B83: Шеховцова Елизавета Дмитриевна | C83: БРО152 | D83: Реклама и связи с общественностью | E83: 174.56 | F83: =IF(G83 > 0, MAX(G$12:G$110) / G83, 0) -> 1.265957447 | G83: 30.08 | H83: =E83*F83 -> 220.9855319 | I83: 52 | J83: 9 | K83: =IF(J83 > 0,I83/J83,0) -> 5.777777778 | L83: =MIN($O83:AU83) -> 4 | N83: 9 | Q83: 7 | S83: 5 | V83: 5 * | W83: 7 | AF83: 4 | AG83: 7 * | AI83: 6 | AP83: 6 | AQ83: 5 | AU83: + | AV83: 72
A84: 73 | B84: Бисовка Евгений Геннадьевич | C84: БРО153 | D84: Реклама и связи с общественностью | E84: 133 | F84: =IF(G84 > 0, MAX(G$12:G$110) / G84, 0) -> 1.655652174 | G84: 23 | H84: =E84*F84 -> 220.2017391 | I84: 41 | J84: 7 | K84: =IF(J84 > 0,I84/J84,0) -> 5.857142857 | L84: =MIN($O84:AU84) -> 5 | N84: 7 | Q84: 7 | S84: 6 | AF84: 6 | AI84: 6 | AK84: 5 | AP84: 5 | AQ84: 6 | AU84: + | AV84: 73
A85: 74 | B85: Харисов Артур Раоланович | C85: БРО153 | D85: Реклама и связи с общественностью | E85: 196.48 | F85: =IF(G85 > 0, MAX(G$12:G$110) / G85, 0) -> 1.117370892 | G85: 34.08 | H85: =E85*F85 -> 219.5410329 | I85: 58 | J85: 10 | K85: =IF(J85 > 0,I85/J85,0) -> 5.8 | L85: =MIN($O85:AU85) -> 3 | M85: Да | N85: 9 | Q85: 8 | V85: 5 * | W85: 6 | Y85: 5 * | AF85: 6 | AG85: 6 * | AI85: 7 | AP85: 5 | AQ85: 3 | AS85: 7 * | AU85: + | AV85: 74
A86: 75 | B86: Хохлова Наталия Алексеевна | C86: БРО151 | D86: Реклама и связи с общественностью | E86: 219.32 | F86: =IF(G86 > 0, MAX(G$12:G$110) / G86, 0) -> 1 | G86: 38.08 | H86: =E86*F86 -> 219.32 | I86: 63 | J86: 11 | K86: =IF(J86 > 0,I86/J86,0) -> 5.727272727 | L86: =MIN($O86:AU86) -> 4 | N86: 11 | Q86: 7 | S86: 6 | V86: 4 * | Y86: 8 * | AF86: 4 | AG86: 4 * | AI86: 7 | AJ86: 5 | AP86: 7 | AQ86: 5 | AS86: 6 * | AU86: + | AV86: 75
A87: 76 | B87: Рашилова Полина Викторовна | C87: БРО151 | D87: Реклама и связи с общественностью | E87: 172 | F87: =IF(G87 > 0, MAX(G$12:G$110) / G87, 0) -> 1.265957447 | G87: 30.08 | H87: =E87*F87 -> 217.7446809 | I87: 51 | J87: 8 | K87: =IF(J87 > 0,I87/J87,0) -> 6.375 | L87: =MIN($O87:AU87) -> 5 | M87: Да | N87: 8 | Q87: 7 | S87: 5 | V87: 4 * | AF87: 6 | AG87: н/я * | AI87: 6 | AK87: 6 | AP87: 7 | AQ87: 10 | AU87: + | AV87: 76
A88: 77 | B88: Луданова Евгения Александровна | C88: БРО151 | D88: Реклама и связи с общественностью | E88: 217.32 | F88: =IF(G88 > 0, MAX(G$12:G$110) / G88, 0) -> 1 | G88: 38.08 | H88: =E88*F88 -> 217.32 | I88: 62 | J88: 11 | K88: =IF(J88 > 0,I88/J88,0) -> 5.636363636 | L88: =MIN($O88:AU88) -> 3 | M88: Да | N88: 10 | Q88: 8 | S88: 7 | V88: 5 * | Y88: 8 * | AF88: 6 | AG88: 4 * | AI88: 5 | AJ88: 5 | AP88: 5 | AQ88: 3 | AS88: 6 * | AU88: + | AV88: 77
A89: 78 | B89: Громов Максим Сергеевич | C89: БРО152 | D89: Реклама и связи с общественностью | E89: 216.32 | F89: =IF(G89 > 0, MAX(G$12:G$110) / G89, 0) -> 1 | G89: 38.08 | H89: =E89*F89 -> 216.32 | I89: 62 | J89: 11 | K89: =IF(J89 > 0,I89/J89,0) -> 5.636363636 | L89: =MIN($O89:AU89) -> 4 | N89: 11 | Q89: 7 | S89: 8 | V89: 5 * | Y89: 6 * | AA89: 7 | AF89: 8 | AG89: 4 * | AI89: 5 | AP89: 4 | AQ89: 4 | AS89: 4 * | AU89: + | AV89: 78
A90: 79 | B90: Поляков Илья Станиславович | C90: БРО153 | D90: Реклама и связи с общественностью | E90: 130 | F90: =IF(G90 > 0, MAX(G$12:G$110) / G90, 0) -> 1.655652174 | G90: 23 | H90: =E90*F90 -> 215.2347826 | I90: 40 | J90: 7 | K90: =IF(J90 > 0,I90/J90,0) -> 5.714285714 | L90: =MIN($O90:AU90) -> 4 | N90: 7 | Q90: 6 | S90: 4 | AA90: 6 | AF90: 6 | AI90: 6 | AP90: 6 | AQ90: 6 | AU90: + | AV90: 79
A91: 80 | B91: Авилова Виктория Борисовна | C91: БРО152 | D91: Реклама и связи с общественностью | E91: 128 | F91: =IF(G91 > 0, MAX(G$12:G$110) / G91, 0) -> 1.655652174 | G91: 23 | H91: =E91*F91 -> 211.9234783 | I91: 39 | J91: 7 | K91: =IF(J91 > 0,I91/J91,0) -> 5.571428571 | L91: =MIN($O91:AU91) -> 4 | N91: 7 | Q91: 6 | S91: 4 | AF91: 5 | AI91: 7 | AL91: 6 | AP91: 7 | AQ91: 4 | AU91: + | AV91: 80
A92: 81 | B92: Редин Виталий Вадимович | C92: БРО153 | D92: Реклама и связи с общественностью | E92: 123 | F92: =IF(G92 > 0, MAX(G$12:G$110) / G92, 0) -> 1.655652174 | G92: 23 | H92: =E92*F92 -> 203.6452174 | I92: 45 | J92: 8 | K92: =IF(J92 > 0,I92/J92,0) -> 5.625 | L92: =MIN($O92:AU92) -> 3 | M92: Да | N92: 6 | Q92: 7 | T92: 10 | Z92: 1 * | AF92: 3 | AI92: 4 | AP92: 6 | AQ92: 4 | AU92: 10 | AV92: 81
A93: 82 | B93: Сизова Анна Геннадьевна | C93: БРО152 | D93: Реклама и связи с общественностью | E93: 122 | F93: =IF(G93 > 0, MAX(G$12:G$110) / G93, 0) -> 1.655652174 | G93: 23 | H93: =E93*F93 -> 201.9895652 | I93: 35 | J93: 5 | K93: =IF(J93 > 0,I93/J93,0) -> 7 | L93: =MIN($O93:AU93) -> 6 | M93: Да | N93: 5 | Q93: 7 | S93: 7 | AA93: 8 | AF93: 6 | AI93: н/я (ув) | AP93: 7 | AQ93: н/я (ув) | AU93: + | AV93: 82
A94: 83 | B94: Нугуспанова Индира | C94: БРО153 | D94: Реклама и связи с общественностью | E94: 119 | F94: =IF(G94 > 0, MAX(G$12:G$110) / G94, 0) -> 1.655652174 | G94: 23 | H94: =E94*F94 -> 197.0226087 | I94: 44 | J94: 8 | K94: =IF(J94 > 0,I94/J94,0) -> 5.5 | L94: =MIN($O94:AU94) -> 3 | M94: Да | N94: 7 | Q94: 10 | S94: 5 | W94: 3 | AF94: 6 | AI94: 5 | AP94: 4 | AQ94: 5 | AU94: + | AV94: 83
A95: 84 | B95: Шкляр Даниэль Семенович | C95: БРО151 | D95: Реклама и связи с общественностью | E95: 116 | F95: =IF(G95 > 0, MAX(G$12:G$110) / G95, 0) -> 1.655652174 | G95: 23 | H95: =E95*F95 -> 192.0556522 | I95: 35 | J95: 7 | K95: =IF(J95 > 0,I95/J95,0) -> 5 | L95: =MIN($O95:AU95) -> 3 | M95: Да | N95: 6 | Q95: 6 | S95: 6 | W95: 4 | AF95: 3 | AI95: 6 | AP95: 6 | AQ95: 4 | AU95: + | AV95: 84
A96: 85 | B96: Даниленко Ярослав | C96: БРО151 | D96: Реклама и связи с общественностью | E96: 115 | F96: =IF(G96 > 0, MAX(G$12:G$110) / G96, 0) -> 1.655652174 | G96: 23 | H96: =E96*F96 -> 190.4 | I96: 34 | J96: 7 | K96: =IF(J96 > 0,I96/J96,0) -> 4.857142857 | L96: =MIN($O96:AU96) -> 1 | M96: Да | N96: 6 | Q96: 7 | S96: 4 | AF96: 5 | AI96: 5 | AN96: 7 | AP96: 5 | AQ96: 1 | AU96: + | AV96: 85
A97: 86 | B97: Лисина Юлия Андреевна | C97: БРО151 | D97: Реклама и связи с общественностью | E97: 167.4 | F97: =IF(G97 > 0, MAX(G$12:G$110) / G97, 0) -> 1.117370892 | G97: 34.08 | H97: =E97*F97 -> 187.0478873 | I97: 52 | J97: 10 | K97: =IF(J97 > 0,I97/J97,0) -> 5.2 | L97: =MIN($O97:AU97) -> 5 | M97: Да | N97: 9 | O97: 4 * | P97: 0 * | Q97: 8 | V97: 7 * | Y97: 6 * | AF97: 6 | AG97: 5 * | AI97: 6 | AM97: 5 | AP97: 5 | AQ97: н/я | AU97: + | AV97: 86
A98: 87 | B98: Скворцова Елизавета Васильевна | C98: БРО151 | D98: Реклама и связи с общественностью | E98: 127.32 | F98: =IF(G98 > 0, MAX(G$12:G$110) / G98, 0) -> 1.460122699 | G98: 26.08 | H98: =E98*F98 -> 185.9028221 | I98: 39 | J98: 8 | K98: =IF(J98 > 0,I98/J98,0) -> 4.875 | L98: =MIN($O98:AU98) -> 0 | M98: Да | N98: 6 | Q98: 9 | V98: 2 * | AF98: 0 | AG98: 4 * | AI98: 7 | AO98: 5 | AP98: 6 | AQ98: 6 | AU98: + | AV98: 87
A99: 88 | B99: Каньшина Елизавета Сергеевна | C99: БРО153 | D99: Реклама и связи с общественностью | E99: 124.56 | F99: =IF(G99 > 0, MAX(G$12:G$110) / G99, 0) -> 1.460122699 | G99: 26.08 | H99: =E99*F99 -> 181.8728834 | I99: 39 | J99: 6 | K99: =IF(J99 > 0,I99/J99,0) -> 6.5 | L99: =MIN($O99:AU99) -> 4 | M99: Да | N99: 6 | Q99: 8 | V99: 6 * | AF99: 6 | AG99: 7 * | AI99: н/я (ув) | AO99: 4 | AP99: 8 | AQ99: н/я (ув) | AU99: + | AV99: 88
A100: 89 | B100: Молот Ксения Олеговна | C100: БРО151 | D100: Реклама и связи с общественностью | E100: 141 | F100: =IF(G100 > 0, MAX(G$12:G$110) / G100, 0) -> 1.265957447 | G100: 30.08 | H100: =E100*F100 -> 178.5 | I100: 42 | J100: 8 | K100: =IF(J100 > 0,I100/J100,0) -> 5.25 | L100: =MIN($O100:AU100) -> 3 | M100: Да | N100: 7 | Q100: 7 | S100: 4 | V100: 4 * | AF100: 5 | AG100: н/я * | AI100: 6 | AL100: 4 | AP100: 3 | AQ100: 9 | AU100: + | AV100: 89
A101: 90 | B101: Суркин Константин Сергеевич | C101: БРО152 | D101: Реклама и связи с общественностью | E101: 98 | F101: =IF(G101 > 0, MAX(G$12:G$110) / G101, 0) -> 1.655652174 | G101: 23 | H101: =E101*F101 -> 162.253913 | I101: 44 | J101: 7 | K101: =IF(J101 > 0,I101/J101,0) -> 6.285714286 | L101: =MIN($O101:AU101) -> 4 | M101: Да | N101: 7 | R101: 6 | X101: н/я | Z101: 4 * | AI101: 6 | AP101: 4 | AQ101: 6 | AT101: 8 | AU101: 10 | AV101: 90
A102: 91 | B102: Серебрякова Валерия Сергеевна | C102: БРО152 | D102: Реклама и связи с общественностью | E102: 57 | F102: =IF(G102 > 0, MAX(G$12:G$110) / G102, 0) -> 2.72 | G102: 14 | H102: =E102*F102 -> 155.04 | I102: 30 | J102: 6 | K102: =IF(J102 > 0,I102/J102,0) -> 5 | L102: =MIN($O102:AU102) -> 2 | M102: Да | N102: 4 | Q102: 5 | AF102: 3 | AI102: 6 | AP102: 4 | AQ102: 2 | AU102: 10 | AV102: 91
A103: 92 | B103: Кармазинский Николай Андреевич | C103: БРО153 | D103: Реклама и связи с общественностью | E103: 102.4 | F103: =IF(G103 > 0, MAX(G$12:G$110) / G103, 0) -> 1.460122699 | G103: 26.08 | H103: =E103*F103 -> 149.5165644 | I103: 33 | J103: 8 | K103: =IF(J103 > 0,I103/J103,0) -> 4.125 | L103: =MIN($O103:AU103) -> 3 | M103: Да | N103: 6 | Q103: 7 | V103: 2 * | AF103: 4 | AG103: 5 * | AI103: 4 | AO103: 4 | AP103: 4 | AQ103: 3 | AU103: + | AV103: 92
A104: 93 | B104: Авдонина Дарья Романовна | C104: БРО152 | D104: Реклама и связи с общественностью | E104: 109.32 | F104: =IF(G104 > 0, MAX(G$12:G$110) / G104, 0) -> 1.265957447 | G104: 30.08 | H104: =E104*F104 -> 138.3944681 | I104: 33 | J104: 8 | K104: =IF(J104 > 0,I104/J104,0) -> 4.125 | L104: =MIN($O104:AU104) -> 1 | M104: Да | N104: 5 | Q104: 7 | S104: 5 | V104: 6 * | AC104: н/я | AF104: 3 | AG104: 4 * | AI104: 5 | AP104: 2 | AQ104: 1 | AU104: + | AV104: 93
A105: 94 | B105: Абрамов Александр Олегович | C105: БРО152 | D105: Реклама и связи с общественностью | E105: 91 | F105: =IF(G105 > 0, MAX(G$12:G$110) / G105, 0) -> 1.464615385 | G105: 26 | H105: =E105*F105 -> 133.28 | I105: 42 | J105: 8 | K105: =IF(J105 > 0,I105/J105,0) -> 5.25 | L105: =MIN($O105:AU105) -> 4 | M105: Да | N105: 6 | P105: 3 * | Q105: 8 | Z105: 0 * | AC105: н/я (ув) * | AE105: 5 | AI105: 4 | AP105: 7 | AQ105: 5 | AU105: 10 | AV105: 94
A106: 95 | B106: Тихонина Мария Игоревна | C106: БРО152 | D106: Реклама и связи с общественностью | E106: 75 | F106: =IF(G106 > 0, MAX(G$12:G$110) / G106, 0) -> 1.655652174 | G106: 23 | H106: =E106*F106 -> 124.173913 | I106: 23 | J106: 6 | K106: =IF(J106 > 0,I106/J106,0) -> 3.833333333 | L106: =MIN($O106:AU106) -> 0 | M106: Да | N106: 2 | Q106: 7 | S106: н/я | AF106: 0 | AI106: 7 | AK106: 3 | AP106: 3 | AQ106: 3 | AU106: + | AV106: 95
A107: 96 | B107: Чачков Алексей Алексеевич | C107: БРО152 | D107: Реклама и связи с общественностью | E107: 52 | F107: =IF(G107 > 0, MAX(G$12:G$110) / G107, 0) -> 2.004210526 | G107: 19 | H107: =E107*F107 -> 104.2189474 | I107: 17 | J107: 3 | K107: =IF(J107 > 0,I107/J107,0) -> 5.666666667 | L107: =MIN($O107:AU107) -> 4 | M107: Да | N107: 3 | Q107: 6 | W107: 4 | AF107: 7 | AI107: н/я (ув) | AP107: н/я (ув) | AQ107: н/я (ув) | AU107: + | AV107: 96
A108: 97 | B108: Селиверстова Анастасия Алексеевна | C108: БРО151 | D108: Реклама и связи с общественностью | E108: 61 | F108: =IF(G108 > 0, MAX(G$12:G$110) / G108, 0) -> 1.464615385 | G108: 26 | H108: =E108*F108 -> 89.34153846 | I108: 32 | J108: 8 | K108: =IF(J108 > 0,I108/J108,0) -> 4 | L108: =MIN($O108:AU108) -> 4 | M108: Да | N108: 6 | P108: 1 * | Q108: 4 | Z108: 0 * | AC108: н/я (ув) | AF108: 5 | AI108: 4 | AP108: 4 | AQ108: 4 | AU108: 10 | AV108: 97
A109: 98 | B109: Арчакова Александра Ивановна | C109: БРО151 | D109: Реклама и связи с общественностью | E109: 50.16 | F109: =IF(G109 > 0, MAX(G$12:G$110) / G109, 0) -> 1.265957447 | G109: 30.08 | H109: =E109*F109 -> 63.50042553 | I109: 15 | J109: 6 | K109: =IF(J109 > 0,I109/J109,0) -> 2.5 | L109: =MIN($O109:AU109) -> 0 | M109: Да | N109: 1 | Q109: 6 | S109: 3 | V109: 2 * | AB109: н/я | AF109: 0 | AG109: 2 * | AI109: н/я (ув) | AP109: н/я | AQ109: 2 | AU109: + | AV109: 98
A110: 99 | B110: Лебедева Маргарита Станиславовна | C110: БРО152 | D110: Реклама и связи с общественностью | E110: 21 | F110: =IF(G110 > 0, MAX(G$12:G$110) / G110, 0) -> 1.265957447 | G110: 30.08 | H110: =E110*F110 -> 26.58510638 | I110: 17 | J110: 5 | K110: =IF(J110 > 0,I110/J110,0) -> 3.4 | L110: =MIN($O110:AU110) -> 0 | M110: Да | N110: 2 | R110: 7 | V110: 0 * | Z110: 0 * | AF110: 0 | AG110: н/я * | AI110: н/я | AM110: н/я | AP110: н/я | AQ110: н/я | AU110: 10 | AV110: 99

Sheet Данные (hidden)
A1: ID | B1: Оценка из 10 баллов до пересдач | C1: Группа | D1: Студент | E1: Фамилия Имя Отчество | F1: Номер студенческого билета | G1: Строка учебного плана | H1: Текущих кредитов за испытание | I1: Вид испытания | J1: Календарный период по плану | K1: Неявка до пересдач | L1: В текущий рейтинг | M1: Текущих кредитов для студента | N1: Оценка зачет/незачет до пересдач | O1: Является бюджетным | P1: Учебный план | Q1: Вид записи РУП | R1: Вид записи ИУП | S1: Номер Row
A2: 1 | B2: 2 | C2: 3 | D2: 4 | E2: 5 | F2: 6 | G2: 7 | H2: 8 | I2: 9 | J2: 10 | K2: 11 | L2: 12 | M2: 13 | N2: 14 | O2: 15 | P2: 16 | Q2: 17 | R2: 18 | S2: 19
A3: 1623541660 | B3: 9 | C3: БРО153 | D3: 1514792971 | E3: Гридчина Нина Сергеевна | F3: М161БРИСО001 | G3: Безопасность жизнедеятельности | H3: 1 | I3: Экзамен | J3: 2016/2017 учебный год 1 модуль | L3: 9 | M3: 1 | N3: 1 | O3: 0 | P3: 1520802210 | Q3: 2098 | R3: ikFirst | S3: stCommon | T3: Реклама и связи с общественностью | U3: =MATCH(D3,Отчет!#REF!,0) -> 
A4: 1623481421 | B4: 4 | C4: БРО151 | D4: 1474053891 | E4: Лисина Юлия Андреевна | F4: М151БРИСО086 | G4: Безопасность жизнедеятельности | H4: 1 | I4: Экзамен | J4: 2016/2017 учебный год 1 модуль | L4: 4 | M4: 1 | N4: 1 | O4: 0 | P4: 1520802210 | Q4: 2098 | R4: ikFirst | S4: stCommon | T4: Реклама и связи с общественностью | U4: =MATCH(D4,Отчет!#REF!,0) -> 
A5: 1623504752 | B5: 5 | C5: БРО151 | D5: 1516201234 | E5: Чернышева Юлия Ивановна | F5: М151БЛУЦП132 | G5: Логика | H5: 3 | I5: Экзамен | J5: 2016/2017 учебный год 1 модуль | L5: 15 | M5: 3 | N5: 1 | O5: 0 | P5: 1520802210 | Q5: 2098 | R5: ikFirst | S5: stCommon | T5: Реклама и связи с общественностью | U5: =MATCH(D5,Отчет!#REF!,0) -> 
A6: 1623537978 | B6: 7 | C6: БРО152 | D6: 1517704476 | E6: Жарикова Анастасия Владимировна | F6: М151БМНДЖ057 | G6: Логика | H6: 3 | I6: Экзамен | J6: 2016/2017 учебный год 1 модуль | L6: 21 | M6: 3 | N6: 1 | O6: 0 | P6: 1520802210 | Q6: 2098 | R6: ikFirst | S6: stCommon | T6: Реклама и связи с общественностью | U6: =MATCH(D6,Отчет!#REF!,0) -> 
A7: 1649669770 | B7: 1 | C7: БРО151 | D7: 1649667663 | E7: Селиверстова Анастасия Алексеевна | F7: 13151224 | G7: Логика | H7: 3 | I7: Экзамен | J7: 2016/2017 учебный год 1 модуль | L7: 0 | M7: 3 | N7: 0 | O7: 0 | P7: 1520802210 | Q7: 2098 | R7: ikFirst | S7: stCommon | T7: Реклама и связи с общественностью | U7: =MATCH(D7,Отчет!#REF!,0) -> 
A8: 1652986358 | B8: 3 | C8: БРО152 | D8: 1652970670 | E8: Абрамов Александр Олегович | F8: 13151201 | G8: Логика | H8: 3 | I8: Экзамен | J8: 2016/2017 учебный год 1 модуль | L8: 0 | M8: 3 | N8: 0 | O8: 0 | P8: 1520802210 | Q8: 2098 | R8: ikFirst | S8: stCommon | T8: Реклама и связи с общественностью | U8: =MATCH(D8,Отчет!#REF!,0) -> 
A9: 1623481430 | B9: 0 | C9: БРО151 | D9: 1474053891 | E9: Лисина Юлия Андреевна | F9: М151БРИСО086 | G9: Логика | H9: 3 | I9: Экзамен | J9: 2016/2017 учебный год 1 модуль | L9: 0 | M9: 3 | N9: 0 | O9: 0 | P9: 1520802210 | Q9: 2098 | R9: ikFirst | S9: stCommon | T9: Реклама и связи с общественностью | U9: =MATCH(D9,Отчет!#REF!,0) -> 
A10: 1623541668 | B10: 4 | C10: БРО153 | D10: 1514792971 | E10: Гридчина Нина Сергеевна | F10: М161БРИСО001 | G10: Логика | H10: 3 | I10: Экзамен | J10: 2016/2017 учебный год 1 модуль | L10: 12 | M10: 3 | N10: 1 | O10: 0 | P10: 1520802210 | Q10: 2098 | R10: ikFirst | S10: stCommon | T10: Реклама и связи с общественностью | U10: =MATCH(D10,Отчет!#REF!,0) -> 
A11: 1580583500 | B11: 9 | C11: БРО151 | D11: 1181086716 | E11: Пономарева Елизавета | F11: М151БРИСО077 | G11: Основы маркетинга | H11: 3 | I11: Экзамен | J11: 2016/2017 учебный год 1 модуль | L11: 27 | M11: 3 | N11: 1 | O11: 1 | P11: 1520829000 | Q11: 2098 | S11: stCommon | T11: Реклама и связи с общественностью | U11: =MATCH(D11,Отчет!#REF!,0) -> 
A12: 1580590606 | B12: 10 | C12: БРО153 | D12: 1181086733 | E12: Дремлюк Марья | F12: М151БРИСО074 | G12: Основы маркетинга | H12: 3 | I12: Экзамен | J12: 2016/2017 учебный год 1 модуль | L12: 30 | M12: 3 | N12: 1 | O12: 1 | P12: 1520829000 | Q12: 2098 | S12: stCommon | T12: Реклама и связи с общественностью | U12: =MATCH(D12,Отчет!#REF!,0) -> 
A13: 1580582478 | B13: 7 | C13: БРО151 | D13: 1181086750 | E13: Даниленко Ярослав | F13: М151БРИСО078 | G13: Основы маркетинга | H13: 3 | I13: Экзамен | J13: 2016/2017 учебный год 1 модуль | L13: 21 | M13: 3 | N13: 1 | O13: 1 | P13: 1520829000 | Q13: 2098 | S13: stCommon | T13: Реклама и связи с общественностью | U13: =MATCH(D13,Отчет!#REF!,0) -> 
A14: 1580587680 | B14: 8 | C14: БРО152 | D14: 1181086767 | E14: Мухортова Дарья Александровна | F14: М151БРИСО072 | G14: Основы маркетинга | H14: 3 | I14: Экзамен | J14: 2016/2017 учебный год 1 модуль | L14: 24 | M14: 3 | N14: 1 | O14: 1 | P14: 1520829000 | Q14: 2098 | S14: stCommon | T14: Реклама и связи с общественностью | U14: =MATCH(D14,Отчет!#REF!,0) -> 
A15: 1580591071 | B15: 8 | C15: БРО153 | D15: 1181086818 | E15: Кунцевич Мария | F15: М151БРИСО076 | G15: Основы маркетинга | H15: 3 | I15: Экзамен | J15: 2016/2017 учебный год 1 модуль | L15: 24 | M15: 3 | N15: 1 | O15: 1 | P15: 1520829000 | Q15: 2098 | S15: stCommon | T15: Реклама и связи с общественностью | U15: =MATCH(D15,Отчет!#REF!,0) -> 
A16: 1572906350 | B16: 7 | C16: БРО151 | D16: 1187793549 | E16: Абдулхакимова Афина Шавкатовна | F16: М151БРИСО084 | G16: Основы маркетинга | H16: 3 | I16: Экзамен | J16: 2016/2017 учебный год 1 модуль | L16: 21 | M16: 3 | N16: 1 | O16: 0 | P16: 1520829000 | Q16: 2098 | S16: stCommon | T16: Реклама и связи с общественностью | U16: =MATCH(D16,Отчет!#REF!,0) -> 
A17: 1580591744 | B17: 9 | C17: БРО153 | D17: 1187938514 | E17: Романова Екатерина Сергеевна | F17: М151БРИСО082 | G17: Основы маркетинга | H17: 3 | I17: Экзамен | J17: 2016/2017 учебный год 1 модуль | L17: 27 | M17: 3 | N17: 1 | O17: 1 | P17: 1520829000 | Q17: 2098 | S17: stCommon | T17: Реклама и связи с общественностью | U17: =MATCH(D17,Отчет!#REF!,0) -> 
A18: 1580587035 | B18: 8 | C18: БРО152 | D18: 1187938540 | E18: Ковалева Анастасия Романовна | F18: М151БРИСО080 | G18: Основы маркетинга | H18: 3 | I18: Экзамен | J18: 2016/2017 учебный год 1 модуль | L18: 24 | M18: 3 | N18: 1 | O18: 1 | P18: 1520829000 | Q18: 2098 | S18: stCommon | T18: Реклама и связи с общественностью | U18: =MATCH(D18,Отчет!#REF!,0) -> 
A19: 1580582130 | B19: 7 | C19: БРО151 | D19: 1192491796 | E19: Бекназарова Комилла Сохибжоновна | F19: М151БРИСО085 | G19: Основы маркетинга | H19: 3 | I19: Экзамен | J19: 2016/2017 учебный год 1 модуль | L19: 21 | M19: 3 | N19: 1 | O19: 1 | P19: 1520829000 | Q19: 2098 | S19: stCommon | T19: Реклама и связи с общественностью | U19: =MATCH(D19,Отчет!#REF!,0) -> 
A20: 1580585626 | B20: 6 | C20: БРО152 | D20: 1322382992 | E20: Авилова Виктория Борисовна | F20: 131236028 | G20: Основы маркетинга | H20: 3 | I20: Экзамен | J20: 2016/2017 учебный год 1 модуль | L20: 18 | M20: 3 | N20: 1 | O20: 0 | P20: 1520829000 | Q20: 2098 | S20: stCommon | T20: Реклама и связи с общественностью | U20: =MATCH(D20,Отчет!#REF!,0) -> 
A21: 1580586500 | B21: 7 | C21: БРО152 | D21: 1396053703 | E21: Громов Максим Сергеевич | F21: М141БФИКЛ012 | G21: Основы маркетинга | H21: 3 | I21: Экзамен | J21: 2016/2017 учебный год 1 модуль | L21: 21 | M21: 3 | N21: 1 | O21: 0 | P21: 1520829000 | Q21: 2098 | S21: stCommon | T21: Реклама и связи с общественностью | U21: =MATCH(D21,Отчет!#REF!,0) -> 
A22: 1580582844 | B22: 8 | C22: БРО151 | D22: 1474053891 | E22: Лисина Юлия Андреевна | F22: М151БРИСО086 | G22: Основы маркетинга | H22: 3 | I22: Экзамен | J22: 2016/2017 учебный год 1 модуль | L22: 24 | M22: 3 | N22: 1 | O22: 0 | P22: 1520829000 | Q22: 2098 | S22: stCommon | T22: Реклама и связи с общественностью | U22: =MATCH(D22,Отчет!#REF!,0) -> 
A23: 1580592199 | B23: 8 | C23: БРО153 | D23: 1514787326 | E23: Харисов Артур Раоланович | F23: М151БЭКСТ107 | G23: Основы маркетинга | H23: 3 | I23: Экзамен | J23: 2016/2017 учебный год 1 модуль | L23: 24 | M23: 3 | N23: 1 | O23: 0 | P23: 1520829000 | Q23: 2098 | S23: stCommon | T23: Реклама и связи с общественностью | U23: =MATCH(D23,Отчет!#REF!,0) -> 
A24: 1580590389 | B24: 9 | C24: БРО153 | D24: 1514792971 | E24: Гридчина Нина Сергеевна | F24: М161БРИСО001 | G24: Основы маркетинга | H24: 3 | I24: Экзамен | J24: 2016/2017 учебный год 1 модуль | L24: 27 | M24: 3 | N24: 1 | O24: 0 | P24: 1520829000 | Q24: 2098 | S24: stCommon | T24: Реклама и связи с общественностью | U24: =MATCH(D24,Отчет!#REF!,0) -> 
A25: 1580590767 | B25: 7 | C25: БРО153 | D25: 1514839183 | E25: Жаркова Дарья Андреевна | F25: М151БСОЦЛ040 | G25: Основы маркетинга | H25: 3 | I25: Экзамен | J25: 2016/2017 учебный год 1 модуль | L25: 21 | M25: 3 | N25: 1 | O25: 0 | P25: 1520829000 | Q25: 2098 | S25: stCommon | T25: Реклама и связи с общественностью | U25: =MATCH(D25,Отчет!#REF!,0) -> 
A26: 1580583839 | B26: 9 | C26: БРО151 | D26: 1515445555 | E26: Скворцова Елизавета Васильевна | F26: М161БРИСО395 | G26: Основы маркетинга | H26: 3 | I26: Экзамен | J26: 2016/2017 учебный год 1 модуль | L26: 27 | M26: 3 | N26: 1 | O26: 0 | P26: 1520829000 | Q26: 2098 | S26: stCommon | T26: Реклама и связи с общественностью | U26: =MATCH(D26,Отчет!#REF!,0) -> 
A27: 1580581857 | B27: 8 | C27: БРО151 | D27: 1515481958 | E27: Бажулич Кристина Джуровна | F27: М151БИНЯЗ017 | G27: Основы маркетинга | H27: 3 | I27: Экзамен | J27: 2016/2017 учебный год 1 модуль | L27: 24 | M27: 3 | N27: 1 | O27: 0 | P27: 1520829000 | Q27: 2098 | S27: stCommon | T27: Реклама и связи с общественностью | U27: =MATCH(D27,Отчет!#REF!,0) -> 
A28: 1580584383 | B28: 8 | C28: БРО151 | D28: 1516201234 | E28: Чернышева Юлия Ивановна | F28: М151БЛУЦП132 | G28: Основы маркетинга | H28: 3 | I28: Экзамен | J28: 2016/2017 учебный год 1 модуль | L28: 24 | M28: 3 | N28: 1 | O28: 0 | P28: 1520829000 | Q28: 2098 | S28: stCommon | T28: Реклама и связи с общественностью | U28: =MATCH(D28,Отчет!#REF!,0) -> 
A29: 1580582928 | B29: 8 | C29: БРО151 | D29: 1517364590 | E29: Луданова Евгения Александровна | F29: М151БМИЭФ103 | G29: Основы маркетинга | H29: 3 | I29: Экзамен | J29: 2016/2017 учебный год 1 модуль | L29: 24 | M29: 3 | N29: 1 | O29: 0 | P29: 1520829000 | Q29: 2098 | S29: stCommon | T29: Реклама и связи с общественностью | U29: =MATCH(D29,Отчет!#REF!,0) -> 
A30: 1580584293 | B30: 7 | C30: БРО151 | D30: 1517365582 | E30: Хохлова Наталия Алексеевна | F30: М151БМИЭФ196 | G30: Основы маркетинга | H30: 3 | I30: Экзамен | J30: 2016/2017 учебный год 1 модуль | L30: 21 | M30: 3 | N30: 1 | O30: 0 | P30: 1520829000 | Q30: 2098 | S30: stCommon | T30: Реклама и связи с общественностью | U30: =MATCH(D30,Отчет!#REF!,0) -> 
A31: 1580589717 | B31: 7 | C31: БРО152 | D31: 1517430637 | E31: Шеховцова Елизавета Дмитриевна | F31: М151БИНЯЗ191 | G31: Основы маркетинга | H31: 3 | I31: Экзамен | J31: 2016/2017 учебный год 1 модуль | L31: 21 | M31: 3 | N31: 1 | O31: 0 | P31: 1520829000 | Q31: 2098 | S31: stCommon | T31: Реклама и связи с общественностью | U31: =MATCH(D31,Отчет!#REF!,0) -> 
A32: 1580586622 | B32: 10 | C32: БРО152 | D32: 1517704476 | E32: Жарикова Анастасия Владимировна | F32: М151БМНДЖ057 | G32: Основы маркетинга | H32: 3 | I32: Экзамен | J32: 2016/2017 учебный год 1 модуль | L32: 30 | M32: 3 | N32: 1 | O32: 0 | P32: 1520829000 | Q32: 2098 | S32: stCommon | T32: Реклама и связи с общественностью | U32: =MATCH(D32,Отчет!#REF!,0) -> 
A33: 1580585524 | B33: 7 | C33: БРО152 | D33: 1518721225 | E33: Авдонина Дарья Романовна | F33: М141БЖУРН001 | G33: Основы маркетинга | H33: 3 | I33: Экзамен | J33: 2016/2017 учебный год 1 модуль | L33: 21 | M33: 3 | N33: 1 | O33: 0 | P33: 1520829000 | Q33: 2098 | S33: stCommon | T33: Реклама и связи с общественностью | U33: =MATCH(D33,Отчет!#REF!,0) -> 
A34: 1580592733 | B34: 10 | C34: БРО153 | D34: 1519084812 | E34: Яснева Екатерина Андреевна | F34: М161БРИСО003 | G34: Основы маркетинга | H34: 3 | I34: Экзамен | J34: 2016/2017 учебный год 1 модуль | L34: 30 | M34: 3 | N34: 1 | O34: 0 | P34: 1520829000 | Q34: 2098 | S34: stCommon | T34: Реклама и связи с общественностью | U34: =MATCH(D34,Отчет!#REF!,0) -> 
A35: 1580581785 | B35: 6 | C35: БРО151 | D35: 1520873492 | E35: Арчакова Александра Ивановна | F35: М151БИНЯЗ013 | G35: Основы маркетинга | H35: 3 | I35: Экзамен | J35: 2016/2017 учебный год 1 модуль | L35: 18 | M35: 3 | N35: 1 | O35: 0 | P35: 1520829000 | Q35: 2098 | R35: ikPlanned | S35: stCommon | T35: Реклама и связи с общественностью | U35: =MATCH(D35,Отчет!#REF!,0) -> 
A36: 1649567048 | B36: 7 | C36: БРО153 | D36: 1649552778 | E36: Редин Виталий Вадимович | F36: 13151222 | G36: Основы маркетинга | H36: 3 | I36: Экзамен | J36: 2016/2017 учебный год 1 модуль | L36: 21 | M36: 3 | N36: 1 | O36: 0 | P36: 1520829000 | Q36: 2098 | R36: ikPlanned | S36: stCommon | T36: Реклама и связи с общественностью | U36: =MATCH(D36,Отчет!#REF!,0) -> 
A37: 1649669738 | B37: 4 | C37: БРО151 | D37: 1649667663 | E37: Селиверстова Анастасия Алексеевна | F37: 13151224 | G37: Основы маркетинга | H37: 3 | I37: Экзамен | J37: 2016/2017 учебный год 1 модуль | L37: 12 | M37: 3 | N37: 1 | O37: 0 | P37: 1520829000 | Q37: 2098 | R37: ikPassed | S37: stCommon | T37: Реклама и связи с общественностью | U37: =MATCH(D37,Отчет!#REF!,0) -> 
A38: 1652986338 | B38: 8 | C38: БРО152 | D38: 1652970670 | E38: Абрамов Александр Олегович | F38: 13151201 | G38: Основы маркетинга | H38: 3 | I38: Экзамен | J38: 2016/2017 учебный год 1 модуль | L38: 24 | M38: 3 | N38: 1 | O38: 0 | P38: 1520829000 | Q38: 2098 | R38: ikPlanned | S38: stCommon | T38: Реклама и связи с общественностью | U38: =MATCH(D38,Отчет!#REF!,0) -> 
A39: 1653151258 | B39: 5 | C39: БРО152 | D39: 1653150908 | E39: Серебрякова Валерия Сергеевна | F39: М141БЭКОН164 | G39: Основы маркетинга | H39: 3 | I39: Экзамен | J39: 2016/2017 учебный год 1 модуль | L39: 15 | M39: 3 | N39: 1 | O39: 0 | P39: 1520829000 | Q39: 2098 | R39: ikPassed | S39: stCommon | T39: Реклама и связи с общественностью | U39: =MATCH(D39,Отчет!#REF!,0) -> 
A40: 1656185884 | B40: 7 | C40: БРО152 | D40: 1656154991 | E40: Чуб Степан Александрович | F40: М151БМНДЖ166 | G40: Основы маркетинга | H40: 3 | I40: Экзамен | J40: 2016/2017 учебный год 1 модуль | L40: 21 | M40: 3 | N40: 1 | O40: 0 | P40: 1520829000 | Q40: 2098 | R40: ikPlanned | S40: stCommon | T40: Реклама и связи с общественностью | U40: =MATCH(D40,Отчет!#REF!,0) -> 
A41: 1656192245 | B41: 7 | C41: БРО151 | D41: 1656174061 | E41: Рашилова Полина Викторовна | F41: М151БЛУЦП091 | G41: Основы маркетинга | H41: 3 | I41: Экзамен | J41: 2016/2017 учебный год 1 модуль | L41: 21 | M41: 3 | N41: 1 | O41: 0 | P41: 1520829000 | Q41: 2098 | R41: ikPlanned | S41: stCommon | T41: Реклама и связи с общественностью | U41: =MATCH(D41,Отчет!#REF!,0) -> 
A42: 1656197506 | B42: 7 | C42: БРО151 | D42: 1656175499 | E42: Молот Ксения Олеговна | F42: М151БЛУЦП073 | G42: Основы маркетинга | H42: 3 | I42: Экзамен | J42: 2016/2017 учебный год 1 модуль | L42: 21 | M42: 3 | N42: 1 | O42: 0 | P42: 1520829000 | Q42: 2098 | R42: ikPlanned | S42: stCommon | T42: Реклама и связи с общественностью | U42: =MATCH(D42,Отчет!#REF!,0) -> 
A43: 1659806654 | B43: 8 | C43: БРО153 | D43: 1656379817 | E43: Коломиец Ольга Андреевна | F43: М151БМНДЖ078 | G43: Основы маркетинга | H43: 3 | I43: Экзамен | J43: 2016/2017 учебный год 1 модуль | L43: 24 | M43: 3 | N43: 1 | O43: 0 | P43: 1520829000 | Q43: 2098 | R43: ikPlanned | S43: stCommon | T43: Реклама и связи с общественностью | U43: =MATCH(D43,Отчет!#REF!,0) -> 
A44: 1663383017 | B44: 8 | C44: БРО153 | D44: 1662712925 | E44: Каньшина Елизавета Сергеевна | F44: 13103024 | G44: Основы маркетинга | H44: 3 | I44: Экзамен | J44: 2016/2017 учебный год 1 модуль | L44: 24 | M44: 3 | N44: 1 | O44: 0 | P44: 1520829000 | Q44: 2098 | R44: ikPlanned | S44: stCommon | T44: Реклама и связи с общественностью | U44: =MATCH(D44,Отчет!#REF!,0) -> 
A45: 1667406558 | B45: 7 | C45: БРО153 | D45: 1667389090 | E45: Кармазинский Николай Андреевич | F45: М161БРИСО394 | G45: Основы маркетинга | H45: 3 | I45: Экзамен | J45: 2016/2017 учебный год 1 модуль | L45: 21 | M45: 3 | N45: 1 | O45: 0 | P45: 1520829000 | Q45: 2098 | R45: ikPlanned | S45: stCommon | T45: Реклама и связи с общественностью | U45: =MATCH(D45,Отчет!#REF!,0) -> 
A46: 1580592620 | B46: 7 | C46: БРО153 | D46: 1162401104 | E46: Янчева Анастасия Вадимовна | F46: М151БРИСО067 | G46: Основы маркетинга | H46: 3 | I46: Экзамен | J46: 2016/2017 учебный год 1 модуль | L46: 21 | M46: 3 | N46: 1 | O46: 1 | P46: 1520829000 | Q46: 2098 | S46: stCommon | T46: Реклама и связи с общественностью | U46: =MATCH(D46,Отчет!#REF!,0) -> 
A47: 1580583957 | B47: 8 | C47: БРО151 | D47: 1162401132 | E47: Смирнова Полина Алексеевна | F47: М151БРИСО052 | G47: Основы маркетинга | H47: 3 | I47: Экзамен | J47: 2016/2017 учебный год 1 модуль | L47: 24 | M47: 3 | N47: 1 | O47: 1 | P47: 1520829000 | Q47: 2098 | S47: stCommon | T47: Реклама и связи с общественностью | U47: =MATCH(D47,Отчет!#REF!,0) -> 
A48: 1580589094 | B48: 7 | C48: БРО152 | D48: 1162401164 | E48: Сизова Анна Геннадьевна | F48: М151БРИСО049 | G48: Основы маркетинга | H48: 3 | I48: Экзамен | J48: 2016/2017 учебный год 1 модуль | L48: 21 | M48: 3 | N48: 1 | O48: 1 | P48: 1520829000 | Q48: 2098 | S48: stCommon | T48: Реклама и связи с общественностью | U48: =MATCH(D48,Отчет!#REF!,0) -> 
A49: 1580586127 | B49: 9 | C49: БРО152 | D49: 1162401228 | E49: Бешанова Елизавета Вячеславовна | F49: М151БРИСО007 | G49: Основы маркетинга | H49: 3 | I49: Экзамен | J49: 2016/2017 учебный год 1 модуль | L49: 27 | M49: 3 | N49: 1 | O49: 1 | P49: 1520829000 | Q49: 2098 | S49: stCommon | T49: Реклама и связи с общественностью | U49: =MATCH(D49,Отчет!#REF!,0) -> 
A50: 1580587931 | B50: 9 | C50: БРО152 | D50: 1162401260 | E50: Никитина Валерия Дмитриевна | F50: М151БРИСО037 | G50: Основы маркетинга | H50: 3 | I50: Экзамен | J50: 2016/2017 учебный год 1 модуль | L50: 27 | M50: 3 | N50: 1 | O50: 1 | P50: 1520829000 | Q50: 2098 | S50: stCommon | T50: Реклама и связи с общественностью | U50: =MATCH(D50,Отчет!#REF!,0) -> 
A51: 1580591236 | B51: 6 | C51: БРО153 | D51: 1162401288 | E51: Мельник Алексей Сергеевич | F51: М151БРИСО032 | G51: Основы маркетинга | H51: 3 | I51: Экзамен | J51: 2016/2017 учебный год 1 модуль | L51: 18 | M51: 3 | N51: 1 | O51: 1 | P51: 1520829000 | Q51: 2098 | S51: stCommon | T51: Реклама и связи с общественностью | U51: =MATCH(D51,Отчет!#REF!,0) -> 
A52: 1580587528 | B52: 8 | C52: БРО152 | D52: 1162401312 | E52: Ленкуте Алина Максимовна | F52: М151БРИСО029 | G52: Основы маркетинга | H52: 3 | I52: Экзамен | J52: 2016/2017 учебный год 1 модуль | L52: 24 | M52: 3 | N52: 1 | O52: 1 | P52: 1520829000 | Q52: 2098 | S52: stCommon | T52: Реклама и связи с общественностью | U52: =MATCH(D52,Отчет!#REF!,0) -> 
A53: 1580590993 | B53: 9 | C53: БРО153 | D53: 1162401344 | E53: Кравчук Кристина Александровна | F53: М151БРИСО026 | G53: Основы маркетинга | H53: 3 | I53: Экзамен | J53: 2016/2017 учебный год 1 модуль | L53: 27 | M53: 3 | N53: 1 | O53: 1 | P53: 1520829000 | Q53: 2098 | S53: stCommon | T53: Реклама и связи с общественностью | U53: =MATCH(D53,Отчет!#REF!,0) -> 
A54: 1580584041 | B54: 9 | C54: БРО151 | D54: 1162401376 | E54: Солдатенкова Арина Витальевна | F54: М151БРИСО053 | G54: Основы маркетинга | H54: 3 | I54: Экзамен | J54: 2016/2017 учебный год 1 модуль | L54: 27 | M54: 3 | N54: 1 | O54: 1 | P54: 1520829000 | Q54: 2098 | S54: stCommon | T54: Реклама и связи с общественностью | U54: =MATCH(D54,Отчет!#REF!,0) -> 
A55: 1580585799 | B55: 9 | C55: БРО152 | D55: 1162401408 | E55: Астурян Вячеслав Вячеславович | F55: М151БРИСО004 | G55: Основы маркетинга | H55: 3 | I55: Экзамен | J55: 2016/2017 учебный год 1 модуль | L55: 27 | M55: 3 | N55: 1 | O55: 1 | P55: 1520829000 | Q55: 2098 | S55: stCommon | T55: Реклама и связи с общественностью | U55: =MATCH(D55,Отчет!#REF!,0) -> 
A56: 1580590464 | B56: 8 | C56: БРО153 | D56: 1162401440 | E56: Гришина Мария Сергеевна | F56: М151БРИСО013 | G56: Основы маркетинга | H56: 3 | I56: Экзамен | J56: 2016/2017 учебный год 1 модуль | L56: 24 | M56: 3 | N56: 1 | O56: 1 | P56: 1520829000 | Q56: 2098 | S56: stCommon | T56: Реклама и связи с общественностью | U56: =MATCH(D56,Отчет!#REF!,0) -> 
A57: 1580592094 | B57: 8 | C57: БРО153 | D57: 1162401597 | E57: Толбухина Полина Дмитриевна | F57: М151БРИСО056 | G57: Основы маркетинга | H57: 3 | I57: Экзамен | J57: 2016/2017 учебный год 1 модуль | L57: 24 | M57: 3 | N57: 1 | O57: 1 | P57: 1520829000 | Q57: 2098 | S57: stCommon | T57: Реклама и связи с общественностью | U57: =MATCH(D57,Отчет!#REF!,0) -> 
A58: 1580586382 | B58: 8 | C58: БРО152 | D58: 1162401665 | E58: Веряева Ксения Михайловна | F58: М151БРИСО010 | G58: Основы маркетинга | H58: 3 | I58: Экзамен | J58: 2016/2017 учебный год 1 модуль | L58: 24 | M58: 3 | N58: 1 | O58: 1 | P58: 1520829000 | Q58: 2098 | S58: stCommon | T58: Реклама и связи с общественностью | U58: =MATCH(D58,Отчет!#REF!,0) -> 
A59: 1580590015 | B59: 7 | C59: БРО153 | D59: 1162401697 | E59: Бисовка Евгений Геннадьевич | F59: М151БРИСО008 | G59: Основы маркетинга | H59: 3 | I59: Экзамен | J59: 2016/2017 учебный год 1 модуль | L59: 21 | M59: 3 | N59: 1 | O59: 1 | P59: 1520829000 | Q59: 2098 | S59: stCommon | T59: Реклама и связи с общественностью | U59: =MATCH(D59,Отчет!#REF!,0) -> 
A60: 1580586899 | B60: 10 | C60: БРО152 | D60: 1162401762 | E60: Калабаева Дарья Андреевна | F60: М151БРИСО020 | G60: Основы маркетинга | H60: 3 | I60: Экзамен | J60: 2016/2017 учебный год 1 модуль | L60: 30 | M60: 3 | N60: 1 | O60: 1 | P60: 1520829000 | Q60: 2098 | S60: stCommon | T60: Реклама и связи с общественностью | U60: =MATCH(D60,Отчет!#REF!,0) -> 
A61: 1580586249 | B61: 8 | C61: БРО152 | D61: 1162402048 | E61: Богданова Владлена Сергеевна | F61: М151БРИСО009 | G61: Основы маркетинга | H61: 3 | I61: Экзамен | J61: 2016/2017 учебный год 1 модуль | L61: 24 | M61: 3 | N61: 1 | O61: 1 | P61: 1520829000 | Q61: 2098 | S61: stCommon | T61: Реклама и связи с общественностью | U61: =MATCH(D61,Отчет!#REF!,0) -> 
A62: 1580584126 | B62: 10 | C62: БРО151 | D62: 1162402075 | E62: Ужегова Полина Александровна | F62: М151БРИСО058 | G62: Основы маркетинга | H62: 3 | I62: Экзамен | J62: 2016/2017 учебный год 1 модуль | L62: 30 | M62: 3 | N62: 1 | O62: 1 | P62: 1520829000 | Q62: 2098 | S62: stCommon | T62: Реклама и связи с общественностью | U62: =MATCH(D62,Отчет!#REF!,0) -> 
A63: 1580591915 | B63: 8 | C63: БРО153 | D63: 1162402110 | E63: Сковородина Елизавета Сергеевна | F63: М151БРИСО051 | G63: Основы маркетинга | H63: 3 | I63: Экзамен | J63: 2016/2017 учебный год 1 модуль | L63: 24 | M63: 3 | N63: 1 | O63: 1 | P63: 1520829000 | Q63: 2098 | S63: stCommon | T63: Реклама и связи с общественностью | U63: =MATCH(D63,Отчет!#REF!,0) -> 
A64: 1580583019 | B64: 10 | C64: БРО151 | D64: 1162402136 | E64: Мазур Екатерина Сергеевна | F64: М151БРИСО031 | G64: Основы маркетинга | H64: 3 | I64: Экзамен | J64: 2016/2017 учебный год 1 модуль | L64: 30 | M64: 3 | N64: 1 | O64: 1 | P64: 1520829000 | Q64: 2098 | S64: stCommon | T64: Реклама и связи с общественностью | U64: =MATCH(D64,Отчет!#REF!,0) -> 
A65: 1580588942 | B65: 8 | C65: БРО152 | D65: 1162402160 | E65: Серегин Геннадий Евгеньевич | F65: М151БРИСО048 | G65: Основы маркетинга | H65: 3 | I65: Экзамен | J65: 2016/2017 учебный год 1 модуль | L65: 24 | M65: 3 | N65: 1 | O65: 1 | P65: 1520829000 | Q65: 2098 | S65: stCommon | T65: Реклама и связи с общественностью | U65: =MATCH(D65,Отчет!#REF!,0) -> 
A66: 1580591148 | B66: 10 | C66: БРО153 | D66: 1162402188 | E66: Курганова Диана Андреевна | F66: М151БРИСО028 | G66: Основы маркетинга | H66: 3 | I66: Экзамен | J66: 2016/2017 учебный год 1 модуль | L66: 30 | M66: 3 | N66: 1 | O66: 1 | P66: 1520829000 | Q66: 2098 | S66: stCommon | T66: Реклама и связи с общественностью | U66: =MATCH(D66,Отчет!#REF!,0) -> 
A67: 1580590231 | C67: БРО153 | D67: 1162402220 | E67: Горохова Елизавета Юрьевна | F67: М151БРИСО011 | G67: Основы маркетинга | H67: 3 | I67: Экзамен | J67: 2016/2017 учебный год 1 модуль | K67: 1 | L67: 0 | M67: 3 | O67: 1 | P67: 1520829000 | Q67: 2098 | S67: stCommon | T67: Реклама и связи с общественностью | U67: =MATCH(D67,Отчет!#REF!,0) -> 
A68: 1580588395 | B68: 9 | C68: БРО152 | D68: 1162402244 | E68: Попова Диана Александровна | F68: М151БРИСО042 | G68: Основы маркетинга | H68: 3 | I68: Экзамен | J68: 2016/2017 учебный год 1 модуль | L68: 27 | M68: 3 | N68: 1 | O68: 1 | P68: 1520829000 | Q68: 2098 | S68: stCommon | T68: Реклама и связи с общественностью | U68: =MATCH(D68,Отчет!#REF!,0) -> 
A69: 1580592292 | B69: 9 | C69: БРО153 | D69: 1162402268 | E69: Шельменкина Карина Сергеевна | F69: М151БРИСО061 | G69: Основы маркетинга | H69: 3 | I69: Экзамен | J69: 2016/2017 учебный год 1 модуль | L69: 27 | M69: 3 | N69: 1 | O69: 1 | P69: 1520829000 | Q69: 2098 | S69: stCommon | T69: Реклама и связи с общественностью | U69: =MATCH(D69,Отчет!#REF!,0) -> 
A70: 1580582037 | B70: 8 | C70: БРО151 | D70: 1162402300 | E70: Барыкина Александра Сергеевна | F70: М151БРИСО006 | G70: Основы маркетинга | H70: 3 | I70: Экзамен | J70: 2016/2017 учебный год 1 модуль | L70: 24 | M70: 3 | N70: 1 | O70: 1 | P70: 1520829000 | Q70: 2098 | S70: stCommon | T70: Реклама и связи с общественностью | U70: =MATCH(D70,Отчет!#REF!,0) -> 
A71: 1580582681 | B71: 7 | C71: БРО151 | D71: 1162402324 | E71: Казакова Виктория Владимировна | F71: М151БРИСО019 | G71: Основы маркетинга | H71: 3 | I71: Экзамен | J71: 2016/2017 учебный год 1 модуль | L71: 21 | M71: 3 | N71: 1 | O71: 1 | P71: 1520829000 | Q71: 2098 | S71: stCommon | T71: Реклама и связи с общественностью | U71: =MATCH(D71,Отчет!#REF!,0) -> 
A72: 1580587374 | B72: 8 | C72: БРО152 | D72: 1162402352 | E72: Криницкая Анастасия Сергеевна | F72: М151БРИСО027 | G72: Основы маркетинга | H72: 3 | I72: Экзамен | J72: 2016/2017 учебный год 1 модуль | L72: 24 | M72: 3 | N72: 1 | O72: 1 | P72: 1520829000 | Q72: 2098 | S72: stCommon | T72: Реклама и связи с общественностью | U72: =MATCH(D72,Отчет!#REF!,0) -> 
A73: 1580583736 | B73: 9 | C73: БРО151 | D73: 1162402384 | E73: Садова Анастасия Романовна | F73: М151БРИСО046 | G73: Основы маркетинга | H73: 3 | I73: Экзамен | J73: 2016/2017 учебный год 1 модуль | L73: 27 | M73: 3 | N73: 1 | O73: 1 | P73: 1520829000 | Q73: 2098 | S73: stCommon | T73: Реклама и связи с общественностью | U73: =MATCH(D73,Отчет!#REF!,0) -> 
A74: 1580583630 | B74: 9 | C74: БРО151 | D74: 1162402412 | E74: Романовская Алина Андреевна | F74: М151БРИСО045 | G74: Основы маркетинга | H74: 3 | I74: Экзамен | J74: 2016/2017 учебный год 1 модуль | L74: 27 | M74: 3 | N74: 1 | O74: 1 | P74: 1520829000 | Q74: 2098 | S74: stCommon | T74: Реклама и связи с общественностью | U74: =MATCH(D74,Отчет!#REF!,0) -> 
A75: 1580590923 | B75: 6 | C75: БРО153 | D75: 1162402641 | E75: Ковтун Юлия Алексеевна | F75: М151БРИСО023 | G75: Основы маркетинга | H75: 3 | I75: Экзамен | J75: 2016/2017 учебный год 1 модуль | L75: 18 | M75: 3 | N75: 1 | O75: 1 | P75: 1520829000 | Q75: 2098 | S75: stCommon | T75: Реклама и связи с общественностью | U75: =MATCH(D75,Отчет!#REF!,0) -> 
A76: 1580592532 | B76: 9 | C76: БРО153 | D76: 1162402673 | E76: Язькова Елизавета Алексеевна | F76: М151БРИСО066 | G76: Основы маркетинга | H76: 3 | I76: Экзамен | J76: 2016/2017 учебный год 1 модуль | L76: 27 | M76: 3 | N76: 1 | O76: 1 | P76: 1520829000 | Q76: 2098 | S76: stCommon | T76: Реклама и связи с общественностью | U76: =MATCH(D76,Отчет!#REF!,0) -> 
A77: 1580591327 | B77: 9 | C77: БРО153 | D77: 1162404239 | E77: Мошева Анастасия Олеговна | F77: М151БРИСО034 | G77: Основы маркетинга | H77: 3 | I77: Экзамен | J77: 2016/2017 учебный год 1 модуль | L77: 27 | M77: 3 | N77: 1 | O77: 1 | P77: 1520829000 | Q77: 2098 | S77: stCommon | T77: Реклама и связи с общественностью | U77: =MATCH(D77,Отчет!#REF!,0) -> 
A78: 1580582765 | B78: 9 | C78: БРО151 | D78: 1162404267 | E78: Колганова Полина Олеговна | F78: М151БРИСО024 | G78: Основы маркетинга | H78: 3 | I78: Экзамен | J78: 2016/2017 учебный год 1 модуль | L78: 27 | M78: 3 | N78: 1 | O78: 0 | P78: 1520829000 | Q78: 2098 | S78: stCommon | T78: Реклама и связи с общественностью | U78: =MATCH(D78,Отчет!#REF!,0) -> 
A79: 1580583309 | B79: 8 | C79: БРО151 | D79: 1162404299 | E79: Панарина Елизавета Сергеевна | F79: М151БРИСО039 | G79: Основы маркетинга | H79: 3 | I79: Экзамен | J79: 2016/2017 учебный год 1 модуль | L79: 24 | M79: 3 | N79: 1 | O79: 1 | P79: 1520829000 | Q79: 2098 | S79: stCommon | T79: Реклама и связи с общественностью | U79: =MATCH(D79,Отчет!#REF!,0) -> 
A80: 1580591826 | B80: 9 | C80: БРО153 | D80: 1162404387 | E80: Скворцова Анна Алексеевна | F80: М151БРИСО050 | G80: Основы маркетинга | H80: 3 | I80: Экзамен | J80: 2016/2017 учебный год 1 модуль | L80: 27 | M80: 3 | N80: 1 | O80: 0 | P80: 1520829000 | Q80: 2098 | S80: stCommon | T80: Реклама и связи с общественностью | U80: =MATCH(D80,Отчет!#REF!,0) -> 
A81: 1580583219 | B81: 8 | C81: БРО151 | D81: 1162404411 | E81: Надирова Анна Зурабовна | F81: М151БРИСО035 | G81: Основы маркетинга | H81: 3 | I81: Экзамен | J81: 2016/2017 учебный год 1 модуль | L81: 24 | M81: 3 | N81: 1 | O81: 0 | P81: 1520829000 | Q81: 2098 | S81: stCommon | T81: Реклама и связи с общественностью | U81: =MATCH(D81,Отчет!#REF!,0) -> 
A82: 1580586745 | B82: 8 | C82: БРО152 | D82: 1162404435 | E82: Захряпина Анастасия Алексеевна | F82: М151БРИСО018 | G82: Основы маркетинга | H82: 3 | I82: Экзамен | J82: 2016/2017 учебный год 1 модуль | L82: 24 | M82: 3 | N82: 1 | O82: 0 | P82: 1520829000 | Q82: 2098 | S82: stCommon | T82: Реклама и связи с общественностью | U82: =MATCH(D82,Отчет!#REF!,0) -> 
A83: 1580588680 | B83: 8 | C83: БРО152 | D83: 1162404463 | E83: Радченко Ирина Дмитриевна | F83: М151БРИСО044 | G83: Основы маркетинга | H83: 3 | I83: Экзамен | J83: 2016/2017 учебный год 1 модуль | L83: 24 | M83: 3 | N83: 1 | O83: 0 | P83: 1520829000 | Q83: 2098 | S83: stCommon | T83: Реклама и связи с общественностью | U83: =MATCH(D83,Отчет!#REF!,0) -> 
A84: 1580592451 | B84: 8 | C84: БРО153 | D84: 1162404495 | E84: Юрьева Мария Дмитриевна | F84: М151БРИСО065 | G84: Основы маркетинга | H84: 3 | I84: Экзамен | J84: 2016/2017 учебный год 1 модуль | L84: 24 | M84: 3 | N84: 1 | O84: 0 | P84: 1520829000 | Q84: 2098 | S84: stCommon | T84: Реклама и связи с общественностью | U84: =MATCH(D84,Отчет!#REF!,0) -> 
A85: 1580588554 | B85: 9 | C85: БРО152 | D85: 1162404529 | E85: Радионова Анна Евгеньевна | F85: М151БРИСО043 | G85: Основы маркетинга | H85: 3 | I85: Экзамен | J85: 2016/2017 учебный год 1 модуль | L85: 27 | M85: 3 | N85: 1 | O85: 1 | P85: 1520829000 | Q85: 2098 | S85: stCommon | T85: Реклама и связи с общественностью | U85: =MATCH(D85,Отчет!#REF!,0) -> 
A86: 1580592374 | B86: 9 | C86: БРО153 | D86: 1162404559 | E86: Щелкунов Игорь Владимирович | F86: М151БРИСО064 | G86: Основы маркетинга | H86: 3 | I86: Экзамен | J86: 2016/2017 учебный год 1 модуль | L86: 27 | M86: 3 | N86: 1 | O86: 0 | P86: 1520829000 | Q86: 2098 | S86: stCommon | T86: Реклама и связи с общественностью | U86: =MATCH(D86,Отчет!#REF!,0) -> 
A87: 1580581635 | B87: 7 | C87: БРО151 | D87: 1162404590 | E87: Аккалаев Марат Русланович | F87: М151БРИСО002 | G87: Основы маркетинга | H87: 3 | I87: Экзамен | J87: 2016/2017 учебный год 1 модуль | L87: 21 | M87: 3 | N87: 1 | O87: 0 | P87: 1520829000 | Q87: 2098 | S87: stCommon | T87: Реклама и связи с общественностью | U87: =MATCH(D87,Отчет!#REF!,0) -> 
A88: 1580590687 | B88: 9 | C88: БРО153 | D88: 1162404615 | E88: Дроздова Елизавета Владимировна | F88: М151БРИСО016 | G88: Основы маркетинга | H88: 3 | I88: Экзамен | J88: 2016/2017 учебный год 1 модуль | L88: 27 | M88: 3 | N88: 1 | O88: 0 | P88: 1520829000 | Q88: 2098 | S88: stCommon | T88: Реклама и связи с общественностью | U88: =MATCH(D88,Отчет!#REF!,0) -> 
A89: 1580588033 | B89: 7 | C89: БРО152 | D89: 1162404639 | E89: Полякова Александра Дмитриевна | F89: М151БРИСО041 | G89: Основы маркетинга | H89: 3 | I89: Экзамен | J89: 2016/2017 учебный год 1 модуль | L89: 21 | M89: 3 | N89: 1 | O89: 0 | P89: 1520829000 | Q89: 2098 | S89: stCommon | T89: Реклама и связи с общественностью | U89: =MATCH(D89,Отчет!#REF!,0) -> 
A90: 1580589477 | B90: 8 | C90: БРО152 | D90: 1162404671 | E90: Фролов Василий Александрович | F90: М151БРИСО060 | G90: Основы маркетинга | H90: 3 | I90: Экзамен | J90: 2016/2017 учебный год 1 модуль | L90: 24 | M90: 3 | N90: 1 | O90: 0 | P90: 1520829000 | Q90: 2098 | S90: stCommon | T90: Реклама и связи с общественностью | U90: =MATCH(D90,Отчет!#REF!,0) -> 
A91: 1580583118 | B91: 9 | C91: БРО151 | D91: 1162404699 | E91: Милова Анастасия Андреевна | F91: М151БРИСО033 | G91: Основы маркетинга | H91: 3 | I91: Экзамен | J91: 2016/2017 учебный год 1 модуль | L91: 27 | M91: 3 | N91: 1 | O91: 0 | P91: 1520829000 | Q91: 2098 | S91: stCommon | T91: Реклама и связи с общественностью | U91: =MATCH(D91,Отчет!#REF!,0) -> 
A92: 1580588805 | B92: 8 | C92: БРО152 | D92: 1162404727 | E92: Сак Евгения Леонидовна | F92: М151БРИСО047 | G92: Основы маркетинга | H92: 3 | I92: Экзамен | J92: 2016/2017 учебный год 1 модуль | L92: 24 | M92: 3 | N92: 1 | O92: 0 | P92: 1520829000 | Q92: 2098 | S92: stCommon | T92: Реклама и связи с общественностью | U92: =MATCH(D92,Отчет!#REF!,0) -> 
A93: 1580587811 | B93: 8 | C93: БРО152 | D93: 1162404759 | E93: Нафталиева Яна Абрамовна | F93: М151БРИСО036 | G93: Основы маркетинга | H93: 3 | I93: Экзамен | J93: 2016/2017 учебный год 1 модуль | L93: 24 | M93: 3 | N93: 1 | O93: 0 | P93: 1520829000 | Q93: 2098 | S93: stCommon | T93: Реклама и связи с общественностью | U93: =MATCH(D93,Отчет!#REF!,0) -> 
A94: 1580591576 | B94: 6 | C94: БРО153 | D94: 1162404783 | E94: Поляков Илья Станиславович | F94: М151БРИСО040 | G94: Основы маркетинга | H94: 3 | I94: Экзамен | J94: 2016/2017 учебный год 1 модуль | L94: 18 | M94: 3 | N94: 1 | O94: 0 | P94: 1520829000 | Q94: 2098 | S94: stCommon | T94: Реклама и связи с общественностью | U94: =MATCH(D94,Отчет!#REF!,0) -> 
A95: 1580589328 | B95: 7 | C95: БРО152 | D95: 1162404815 | E95: Тихонина Мария Игоревна | F95: М151БРИСО054 | G95: Основы маркетинга | H95: 3 | I95: Экзамен | J95: 2016/2017 учебный год 1 модуль | L95: 21 | M95: 3 | N95: 1 | O95: 0 | P95: 1520829000 | Q95: 2098 | S95: stCommon | T95: Реклама и связи с общественностью | U95: =MATCH(D95,Отчет!#REF!,0) -> 
A96: 1580582400 | B96: 8 | C96: БРО151 | D96: 1162404843 | E96: Даниель Александра Александровна | F96: М151БРИСО014 | G96: Основы маркетинга | H96: 3 | I96: Экзамен | J96: 2016/2017 учебный год 1 модуль | L96: 24 | M96: 3 | N96: 1 | O96: 0 | P96: 1520829000 | Q96: 2098 | S96: stCommon | T96: Реклама и связи с общественностью | U96: =MATCH(D96,Отчет!#REF!,0) -> 
A97: 1580591414 | B97: 10 | C97: БРО153 | D97: 1162404875 | E97: Никоненко Анастасия Германовна | F97: М151БРИСО038 | G97: Основы маркетинга | H97: 3 | I97: Экзамен | J97: 2016/2017 учебный год 1 модуль | L97: 30 | M97: 3 | N97: 1 | O97: 0 | P97: 1520829000 | Q97: 2098 | S97: stCommon | T97: Реклама и связи с общественностью | U97: =MATCH(D97,Отчет!#REF!,0) -> 
A98: 1580589403 | B98: 8 | C98: БРО152 | D98: 1162404939 | E98: Тузова Евгения Сергеевна | F98: М151БРИСО057 | G98: Основы маркетинга | H98: 3 | I98: Экзамен | J98: 2016/2017 учебный год 1 модуль | L98: 24 | M98: 3 | N98: 1 | O98: 0 | P98: 1520829000 | Q98: 2098 | S98: stCommon | T98: Реклама и связи с общественностью | U98: =MATCH(D98,Отчет!#REF!,0) -> 
A99: 1580582570 | B99: 7 | C99: БРО151 | D99: 1162404963 | E99: Ермаков Иван Григорьевич | F99: М151БРИСО017 | G99: Основы маркетинга | H99: 3 | I99: Экзамен | J99: 2016/2017 учебный год 1 модуль | L99: 21 | M99: 3 | N99: 1 | O99: 0 | P99: 1520829000 | Q99: 2098 | S99: stCommon | T99: Реклама и связи с общественностью | U99: =MATCH(D99,Отчет!#REF!,0) -> 
A100: 1580590839 | B100: 10 | C100: БРО153 | D100: 1162404995 | E100: Кимлык Мария Андреевна | F100: М151БРИСО022 | G100: Основы маркетинга | H100: 3 | I100: Экзамен | J100: 2016/2017 учебный год 1 модуль | L100: 30 | M100: 3 | N100: 1 | O100: 1 | P100: 1520829000 | Q100: 2098 | S100: stCommon | T100: Реклама и связи с общественностью | U100: =MATCH(D100,Отчет!#REF!,0) -> 
A101: 1580584471 | B101: 6 | C101: БРО151 | D101: 1162405311 | E101: Шкляр Даниэль Семенович | F101: М151БРИСО062 | G101: Основы маркетинга | H101: 3 | I101: Экзамен | J101: 2016/2017 учебный год 1 модуль | L101: 18 | M101: 3 | N101: 1 | O101: 0 | P101: 1520829000 | Q101: 2098 | S101: stCommon | T101: Реклама и связи с общественностью | U101: =MATCH(D101,Отчет!#REF!,0) -> 
A102: 1580590319 | B102: 8 | C102: БРО153 | D102: 1162405372 | E102: Гранина Дарья Константиновна | F102: М151БРИСО012 | G102: Основы маркетинга | H102: 3 | I102: Экзамен | J102: 2016/2017 учебный год 1 модуль | L102: 24 | M102: 3 | N102: 1 | O102: 0 | P102: 1520829000 | Q102: 2098 | S102: stCommon | T102: Реклама и связи с общественностью | U102: =MATCH(D102,Отчет!#REF!,0) -> 
A103: 1580590104 | B103: 7 | C103: БРО153 | D103: 1173924661 | E103: Галкин Вячеслав Владимирович | F103: М151БРИСО070 | G103: Основы маркетинга | H103: 3 | I103: Экзамен | J103: 2016/2017 учебный год 1 модуль | L103: 21 | M103: 3 | N103: 1 | O103: 0 | P103: 1520829000 | Q103: 2098 | S103: stCommon | T103: Реклама и связи с общественностью | U103: =MATCH(D103,Отчет!#REF!,0) -> 
A104: 1580591489 | B104: 10 | C104: БРО153 | D104: 1181080622 | E104: Нугуспанова Индира | F104: М151БРИСО075 | G104: Основы маркетинга | H104: 3 | I104: Экзамен | J104: 2016/2017 учебный год 1 модуль | L104: 30 | M104: 3 | N104: 1 | O104: 1 | P104: 1520829000 | Q104: 2098 | S104: stCommon | T104: Реклама и связи с общественностью | U104: =MATCH(D104,Отчет!#REF!,0) -> 
A105: 1580582222 | B105: 7 | C105: БРО151 | D105: 1181080646 | E105: Белякова Анастасия | F105: М151БРИСО079 | G105: Основы маркетинга | H105: 3 | I105: Экзамен | J105: 2016/2017 учебный год 1 модуль | L105: 21 | M105: 3 | N105: 1 | O105: 1 | P105: 1520829000 | Q105: 2098 | S105: stCommon | T105: Реклама и связи с общественностью | U105: =MATCH(D105,Отчет!#REF!,0) -> 
A106: 1580589647 | B106: 6 | C106: БРО152 | D106: 1181080670 | E106: Чачков Алексей Алексеевич | F106: М151БРИСО083 | G106: Основы маркетинга | H106: 3 | I106: Экзамен | J106: 2016/2017 учебный год 1 модуль | L106: 18 | M106: 3 | N106: 1 | O106: 1 | P106: 1520829000 | Q106: 2098 | S106: stCommon | T106: Реклама и связи с общественностью | U106: =MATCH(D106,Отчет!#REF!,0) -> 
A107: 1580582308 | B107: 9 | C107: БРО151 | D107: 1181080708 | E107: Ганиева Карина Туребековна | F107: М151БРИСО081 | G107: Основы маркетинга | H107: 3 | I107: Экзамен | J107: 2016/2017 учебный год 1 модуль | L107: 27 | M107: 3 | N107: 1 | O107: 1 | P107: 1520829000 | Q107: 2098 | S107: stCommon | T107: Реклама и связи с общественностью | U107: =MATCH(D107,Отчет!#REF!,0) -> 
A108: 1649861524 | B108: 7 | C108: БРО152 | D108: 1649860854 | E108: Лебедева Маргарита Станиславовна | F108: 12151236 | G108: Основы маркетинга | H108: 3 | I108: Зачет | J108: 2016/2017 учебный год 1 модуль | L108: 21 | M108: 3 | N108: 1 | O108: 0 | P108: 1520829000 | Q108: 2098 | R108: ikExternalPassed | S108: stCommon | T108: Реклама и связи с общественностью | U108: =MATCH(D108,Отчет!#REF!,0) -> 
A109: 1656792266 | B109: 6 | C109: БРО152 | D109: 1656791552 | E109: Суркин Константин Сергеевич | F109: 101094114 | G109: Основы маркетинга | H109: 3 | I109: Зачет | J109: 2016/2017 учебный год 1 модуль | L109: 18 | M109: 3 | N109: 1 | O109: 0 | P109: 1520829000 | Q109: 2098 | R109: ikPassed | S109: stCommon | T109: Реклама и связи с общественностью | U109: =MATCH(D109,Отчет!#REF!,0) -> 
A110: 1730487967 | B110: 0 | C110: БРО152 | D110: 1187938540 | E110: Ковалева Анастасия Романовна | F110: М151БРИСО080 | G110: Проект Коммуникационная поддержка социально значимого молодёжного проекта | H110: 1 | I110: Зачет | J110: 2016/2017 учебный год 1 модуль | L110: 0 | M110: 0 | N110: 0 | O110: 1 | T110: Реклама и связи с общественностью | U110: =MATCH(D110,Отчет!#REF!,0) -> 
A111: 1679214747 | C111: БРО152 | D111: 1162402244 | E111: Попова Диана Александровна | F111: М151БРИСО042 | G111: Проект Проектная мастерская по предпринимательству: Исследование историй успеха Московских стартапов. | H111: 2 | I111: Зачет | J111: 2016/2017 учебный год 1 модуль | L111: 0 | M111: 0 | N111: 1 | O111: 1 | T111: Реклама и связи с общественностью | U111: =MATCH(D111,Отчет!#REF!,0) -> 
A112: 1679214736 | C112: БРО151 | D112: 1162402136 | E112: Мазур Екатерина Сергеевна | F112: М151БРИСО031 | G112: Проект Проектная мастерская по предпринимательству: Исследование историй успеха Московских стартапов. | H112: 2 | I112: Зачет | J112: 2016/2017 учебный год 1 модуль | L112: 0 | M112: 0 | N112: 1 | O112: 1 | T112: Реклама и связи с общественностью | U112: =MATCH(D112,Отчет!#REF!,0) -> 
A113: 1679214733 | C113: БРО153 | D113: 1519084812 | E113: Яснева Екатерина Андреевна | F113: М161БРИСО003 | G113: Проект Проектная мастерская по предпринимательству: Исследование историй успеха Московских стартапов. | H113: 2 | I113: Зачет | J113: 2016/2017 учебный год 1 модуль | L113: 0 | M113: 0 | N113: 1 | O113: 0 | T113: Реклама и связи с общественностью | U113: =MATCH(D113,Отчет!#REF!,0) -> 
A114: 1629048185 | B114: 10 | C114: БРО153 | D114: 1162404239 | E114: Мошева Анастасия Олеговна | F114: М151БРИСО034 | G114: Английский язык | H114: 4 | I114: Экзамен | J114: 2016/2017 учебный год 2 модуль | L114: 40 | M114: 4 | N114: 1 | O114: 1 | P114: 1520829000 | Q114: 2098 | S114: stFacultative | T114: Реклама и связи с общественностью | U114: =MATCH(D114,Отчет!#REF!,0) -> 
A115: 1629047025 | B115: 9 | C115: БРО151 | D115: 1162404267 | E115: Колганова Полина Олеговна | F115: М151БРИСО024 | G115: Английский язык | H115: 4 | I115: Экзамен | J115: 2016/2017 учебный год 2 модуль | L115: 36 | M115: 4 | N115: 1 | O115: 0 | P115: 1520829000 | Q115: 2098 | S115: stFacultative | T115: Реклама и связи с общественностью | U115: =MATCH(D115,Отчет!#REF!,0) -> 
A116: 1629047045 | B116: 7 | C116: БРО151 | D116: 1162404299 | E116: Панарина Елизавета Сергеевна | F116: М151БРИСО039 | G116: Английский язык | H116: 4 | I116: Экзамен | J116: 2016/2017 учебный год 2 модуль | L116: 28 | M116: 4 | N116: 1 | O116: 1 | P116: 1520829000 | Q116: 2098 | S116: stFacultative | T116: Реклама и связи с общественностью | U116: =MATCH(D116,Отчет!#REF!,0) -> 
A117: 1629048240 | B117: 10 | C117: БРО153 | D117: 1162401104 | E117: Янчева Анастасия Вадимовна | F117: М151БРИСО067 | G117: Английский язык | H117: 4 | I117: Экзамен | J117: 2016/2017 учебный год 2 модуль | L117: 40 | M117: 4 | N117: 1 | O117: 1 | P117: 1520829000 | Q117: 2098 | S117: stFacultative | T117: Реклама и связи с общественностью | U117: =MATCH(D117,Отчет!#REF!,0) -> 
A118: 1629047063 | B118: 8 | C118: БРО151 | D118: 1162401132 | E118: Смирнова Полина Алексеевна | F118: М151БРИСО052 | G118: Английский язык | H118: 4 | I118: Экзамен | J118: 2016/2017 учебный год 2 модуль | L118: 32 | M118: 4 | N118: 1 | O118: 1 | P118: 1520829000 | Q118: 2098 | S118: stFacultative | T118: Реклама и связи с общественностью | U118: =MATCH(D118,Отчет!#REF!,0) -> 
A119: 1629047809 | B119: 7 | C119: БРО152 | D119: 1162401164 | E119: Сизова Анна Геннадьевна | F119: М151БРИСО049 | G119: Английский язык | H119: 4 | I119: Экзамен | J119: 2016/2017 учебный год 2 модуль | L119: 28 | M119: 4 | N119: 1 | O119: 1 | P119: 1520829000 | Q119: 2098 | S119: stFacultative | T119: Реклама и связи с общественностью | U119: =MATCH(D119,Отчет!#REF!,0) -> 
A120: 1629047652 | B120: 10 | C120: БРО152 | D120: 1162401228 | E120: Бешанова Елизавета Вячеславовна | F120: М151БРИСО007 | G120: Английский язык | H120: 4 | I120: Экзамен | J120: 2016/2017 учебный год 2 модуль | L120: 40 | M120: 4 | N120: 1 | O120: 1 | P120: 1520829000 | Q120: 2098 | S120: stFacultative | T120: Реклама и связи с общественностью | U120: =MATCH(D120,Отчет!#REF!,0) -> 
A121: 1629047744 | B121: 9 | C121: БРО152 | D121: 1162401260 | E121: Никитина Валерия Дмитриевна | F121: М151БРИСО037 | G121: Английский язык | H121: 4 | I121: Экзамен | J121: 2016/2017 учебный год 2 модуль | L121: 36 | M121: 4 | N121: 1 | O121: 1 | P121: 1520829000 | Q121: 2098 | S121: stFacultative | T121: Реклама и связи с общественностью | U121: =MATCH(D121,Отчет!#REF!,0) -> 
A122: 1629048180 | B122: 6 | C122: БРО153 | D122: 1162401288 | E122: Мельник Алексей Сергеевич | F122: М151БРИСО032 | G122: Английский язык | H122: 4 | I122: Экзамен | J122: 2016/2017 учебный год 2 модуль | L122: 24 | M122: 4 | N122: 1 | O122: 1 | P122: 1520829000 | Q122: 2098 | S122: stFacultative | T122: Реклама и связи с общественностью | U122: =MATCH(D122,Отчет!#REF!,0) -> 
A123: 1629047724 | B123: 8 | C123: БРО152 | D123: 1162401312 | E123: Ленкуте Алина Максимовна | F123: М151БРИСО029 | G123: Английский язык | H123: 4 | I123: Экзамен | J123: 2016/2017 учебный год 2 модуль | L123: 32 | M123: 4 | N123: 1 | O123: 1 | P123: 1520829000 | Q123: 2098 | S123: stFacultative | T123: Реклама и связи с общественностью | U123: =MATCH(D123,Отчет!#REF!,0) -> 
A124: 1629048165 | B124: 6 | C124: БРО153 | D124: 1162401344 | E124: Кравчук Кристина Александровна | F124: М151БРИСО026 | G124: Английский язык | H124: 4 | I124: Экзамен | J124: 2016/2017 учебный год 2 модуль | L124: 24 | M124: 4 | N124: 1 | O124: 1 | P124: 1520829000 | Q124: 2098 | S124: stFacultative | T124: Реклама и связи с общественностью | U124: =MATCH(D124,Отчет!#REF!,0) -> 
A125: 1629047067 | B125: 8 | C125: БРО151 | D125: 1162401376 | E125: Солдатенкова Арина Витальевна | F125: М151БРИСО053 | G125: Английский язык | H125: 4 | I125: Экзамен | J125: 2016/2017 учебный год 2 модуль | L125: 32 | M125: 4 | N125: 1 | O125: 1 | P125: 1520829000 | Q125: 2098 | S125: stFacultative | T125: Реклама и связи с общественностью | U125: =MATCH(D125,Отчет!#REF!,0) -> 
A126: 1629047642 | B126: 8 | C126: БРО152 | D126: 1162401408 | E126: Астурян Вячеслав Вячеславович | F126: М151БРИСО004 | G126: Английский язык | H126: 4 | I126: Экзамен | J126: 2016/2017 учебный год 2 модуль | L126: 32 | M126: 4 | N126: 1 | O126: 1 | P126: 1520829000 | Q126: 2098 | S126: stFacultative | T126: Реклама и связи с общественностью | U126: =MATCH(D126,Отчет!#REF!,0) -> 
A127: 1629048133 | B127: 9 | C127: БРО153 | D127: 1162401440 | E127: Гришина Мария Сергеевна | F127: М151БРИСО013 | G127: Английский язык | H127: 4 | I127: Экзамен | J127: 2016/2017 учебный год 2 модуль | L127: 36 | M127: 4 | N127: 1 | O127: 1 | P127: 1520829000 | Q127: 2098 | S127: stFacultative | T127: Реклама и связи с общественностью | U127: =MATCH(D127,Отчет!#REF!,0) -> 
A128: 1629048220 | B128: 8 | C128: БРО153 | D128: 1162401597 | E128: Толбухина Полина Дмитриевна | F128: М151БРИСО056 | G128: Английский язык | H128: 4 | I128: Экзамен | J128: 2016/2017 учебный год 2 модуль | L128: 32 | M128: 4 | N128: 1 | O128: 1 | P128: 1520829000 | Q128: 2098 | S128: stFacultative | T128: Реклама и связи с общественностью | U128: =MATCH(D128,Отчет!#REF!,0) -> 
A129: 1629047667 | B129: 9 | C129: БРО152 | D129: 1162401665 | E129: Веряева Ксения Михайловна | F129: М151БРИСО010 | G129: Английский язык | H129: 4 | I129: Экзамен | J129: 2016/2017 учебный год 2 модуль | L129: 36 | M129: 4 | N129: 1 | O129: 1 | P129: 1520829000 | Q129: 2098 | S129: stFacultative | T129: Реклама и связи с общественностью | U129: =MATCH(D129,Отчет!#REF!,0) -> 
A130: 1629048111 | B130: 6 | C130: БРО153 | D130: 1162401697 | E130: Бисовка Евгений Геннадьевич | F130: М151БРИСО008 | G130: Английский язык | H130: 4 | I130: Экзамен | J130: 2016/2017 учебный год 2 модуль | L130: 24 | M130: 4 | N130: 1 | O130: 1 | P130: 1520829000 | Q130: 2098 | S130: stFacultative | T130: Реклама и связи с общественностью | U130: =MATCH(D130,Отчет!#REF!,0) -> 
A131: 1629047701 | B131: 9 | C131: БРО152 | D131: 1162401762 | E131: Калабаева Дарья Андреевна | F131: М151БРИСО020 | G131: Английский язык | H131: 4 | I131: Экзамен | J131: 2016/2017 учебный год 2 модуль | L131: 36 | M131: 4 | N131: 1 | O131: 1 | P131: 1520829000 | Q131: 2098 | S131: stFacultative | T131: Реклама и связи с общественностью | U131: =MATCH(D131,Отчет!#REF!,0) -> 
A132: 1629047658 | B132: 8 | C132: БРО152 | D132: 1162402048 | E132: Богданова Владлена Сергеевна | F132: М151БРИСО009 | G132: Английский язык | H132: 4 | I132: Экзамен | J132: 2016/2017 учебный год 2 модуль | L132: 32 | M132: 4 | N132: 1 | O132: 1 | P132: 1520829000 | Q132: 2098 | S132: stFacultative | T132: Реклама и связи с общественностью | U132: =MATCH(D132,Отчет!#REF!,0) -> 
A133: 1629047072 | B133: 7 | C133: БРО151 | D133: 1162402075 | E133: Ужегова Полина Александровна | F133: М151БРИСО058 | G133: Английский язык | H133: 4 | I133: Экзамен | J133: 2016/2017 учебный год 2 модуль | L133: 28 | M133: 4 | N133: 1 | O133: 1 | P133: 1520829000 | Q133: 2098 | S133: stFacultative | T133: Реклама и связи с общественностью | U133: =MATCH(D133,Отчет!#REF!,0) -> 
A134: 1656197488 | B134: 4 | C134: БРО151 | D134: 1656175499 | E134: Молот Ксения Олеговна | F134: М151БЛУЦП073 | G134: Английский язык | H134: 4 | I134: Экзамен | J134: 2016/2017 учебный год 2 модуль | L134: 16 | M134: 4 | N134: 1 | O134: 0 | P134: 1520829000 | Q134: 2098 | R134: ikPlanned | S134: stFacultative | T134: Реклама и связи с общественностью | U134: =MATCH(D134,Отчет!#REF!,0) -> 
A135: 1659806571 | B135: 10 | C135: БРО153 | D135: 1656379817 | E135: Коломиец Ольга Андреевна | F135: М151БМНДЖ078 | G135: Английский язык | H135: 4 | I135: Экзамен | J135: 2016/2017 учебный год 2 модуль | L135: 40 | M135: 4 | N135: 1 | O135: 0 | P135: 1520829000 | Q135: 2098 | R135: ikPlanned | S135: stFacultative | T135: Реклама и связи с общественностью | U135: =MATCH(D135,Отчет!#REF!,0) -> 
A136: 1629047846 | B136: 5 | C136: БРО152 | D136: 1517430637 | E136: Шеховцова Елизавета Дмитриевна | F136: М151БИНЯЗ191 | G136: Английский язык | H136: 4 | I136: Экзамен | J136: 2016/2017 учебный год 2 модуль | L136: 20 | M136: 4 | N136: 1 | O136: 0 | P136: 1520829000 | Q136: 2098 | S136: stFacultative | T136: Реклама и связи с общественностью | U136: =MATCH(D136,Отчет!#REF!,0) -> 
A137: 1629047686 | B137: 8 | C137: БРО152 | D137: 1517704476 | E137: Жарикова Анастасия Владимировна | F137: М151БМНДЖ057 | G137: Английский язык | H137: 4 | I137: Экзамен | J137: 2016/2017 учебный год 2 модуль | L137: 32 | M137: 4 | N137: 1 | O137: 0 | P137: 1520829000 | Q137: 2098 | S137: stFacultative | T137: Реклама и связи с общественностью | U137: =MATCH(D137,Отчет!#REF!,0) -> 
A138: 1629047628 | B138: 5 | C138: БРО152 | D138: 1518721225 | E138: Авдонина Дарья Романовна | F138: М141БЖУРН001 | G138: Английский язык | H138: 4 | I138: Экзамен | J138: 2016/2017 учебный год 2 модуль | L138: 20 | M138: 4 | N138: 1 | O138: 0 | P138: 1520829000 | Q138: 2098 | S138: stFacultative | T138: Реклама и связи с общественностью | U138: =MATCH(D138,Отчет!#REF!,0) -> 
A139: 1629048244 | B139: 5 | C139: БРО153 | D139: 1519084812 | E139: Яснева Екатерина Андреевна | F139: М161БРИСО003 | G139: Английский язык | H139: 4 | I139: Экзамен | J139: 2016/2017 учебный год 2 модуль | L139: 20 | M139: 4 | N139: 1 | O139: 0 | P139: 1520829000 | Q139: 2098 | S139: stFacultative | T139: Реклама и связи с общественностью | U139: =MATCH(D139,Отчет!#REF!,0) -> 
A140: 1623448456 | B140: 3 | C140: БРО151 | D140: 1520873492 | E140: Арчакова Александра Ивановна | F140: М151БИНЯЗ013 | G140: Английский язык | H140: 4 | I140: Экзамен | J140: 2016/2017 учебный год 2 модуль | L140: 0 | M140: 4 | N140: 0 | O140: 0 | P140: 1520829000 | Q140: 2098 | R140: ikPlanned | S140: stFacultative | T140: Реклама и связи с общественностью | U140: =MATCH(D140,Отчет!#REF!,0) -> 
A141: 1656185835 | B141: 8 | C141: БРО152 | D141: 1656154991 | E141: Чуб Степан Александрович | F141: М151БМНДЖ166 | G141: Английский язык | H141: 4 | I141: Экзамен | J141: 2016/2017 учебный год 2 модуль | L141: 32 | M141: 4 | N141: 1 | O141: 0 | P141: 1520829000 | Q141: 2098 | R141: ikPlanned | S141: stFacultative | T141: Реклама и связи с общественностью | U141: =MATCH(D141,Отчет!#REF!,0) -> 
A142: 1656192290 | B142: 5 | C142: БРО151 | D142: 1656174061 | E142: Рашилова Полина Викторовна | F142: М151БЛУЦП091 | G142: Английский язык | H142: 4 | I142: Экзамен | J142: 2016/2017 учебный год 2 модуль | L142: 20 | M142: 4 | N142: 1 | O142: 0 | P142: 1520829000 | Q142: 2098 | R142: ikPlanned | S142: stFacultative | T142: Реклама и связи с общественностью | U142: =MATCH(D142,Отчет!#REF!,0) -> 
A143: 1629046983 | B143: 7 | C143: БРО151 | D143: 1192491796 | E143: Бекназарова Комилла Сохибжоновна | F143: М151БРИСО085 | G143: Английский язык | H143: 4 | I143: Экзамен | J143: 2016/2017 учебный год 2 модуль | L143: 28 | M143: 4 | N143: 1 | O143: 1 | P143: 1520829000 | Q143: 2098 | S143: stFacultative | T143: Реклама и связи с общественностью | U143: =MATCH(D143,Отчет!#REF!,0) -> 
A144: 1629047633 | B144: 4 | C144: БРО152 | D144: 1322382992 | E144: Авилова Виктория Борисовна | F144: 131236028 | G144: Английский язык | H144: 4 | I144: Экзамен | J144: 2016/2017 учебный год 2 модуль | L144: 16 | M144: 4 | N144: 1 | O144: 0 | P144: 1520829000 | Q144: 2098 | S144: stFacultative | T144: Реклама и связи с общественностью | U144: =MATCH(D144,Отчет!#REF!,0) -> 
A145: 1629047676 | B145: 8 | C145: БРО152 | D145: 1396053703 | E145: Громов Максим Сергеевич | F145: М141БФИКЛ012 | G145: Английский язык | H145: 4 | I145: Экзамен | J145: 2016/2017 учебный год 2 модуль | L145: 32 | M145: 4 | N145: 1 | O145: 0 | P145: 1520829000 | Q145: 2098 | S145: stFacultative | T145: Реклама и связи с общественностью | U145: =MATCH(D145,Отчет!#REF!,0) -> 
A146: 1629048150 | B146: 8 | C146: БРО153 | D146: 1514839183 | E146: Жаркова Дарья Андреевна | F146: М151БСОЦЛ040 | G146: Английский язык | H146: 4 | I146: Экзамен | J146: 2016/2017 учебный год 2 модуль | L146: 32 | M146: 4 | N146: 1 | O146: 0 | P146: 1520829000 | Q146: 2098 | S146: stFacultative | T146: Реклама и связи с общественностью | U146: =MATCH(D146,Отчет!#REF!,0) -> 
A147: 1629046970 | B147: 6 | C147: БРО151 | D147: 1515481958 | E147: Бажулич Кристина Джуровна | F147: М151БИНЯЗ017 | G147: Английский язык | H147: 4 | I147: Экзамен | J147: 2016/2017 учебный год 2 модуль | L147: 24 | M147: 4 | N147: 1 | O147: 0 | P147: 1520829000 | Q147: 2098 | S147: stFacultative | T147: Реклама и связи с общественностью | U147: =MATCH(D147,Отчет!#REF!,0) -> 
A148: 1629047087 | B148: 7 | C148: БРО151 | D148: 1516201234 | E148: Чернышева Юлия Ивановна | F148: М151БЛУЦП132 | G148: Английский язык | H148: 4 | I148: Экзамен | J148: 2016/2017 учебный год 2 модуль | L148: 28 | M148: 4 | N148: 1 | O148: 0 | P148: 1520829000 | Q148: 2098 | S148: stFacultative | T148: Реклама и связи с общественностью | U148: =MATCH(D148,Отчет!#REF!,0) -> 
A149: 1629047029 | B149: 7 | C149: БРО151 | D149: 1517364590 | E149: Луданова Евгения Александровна | F149: М151БМИЭФ103 | G149: Английский язык | H149: 4 | I149: Экзамен | J149: 2016/2017 учебный год 2 модуль | L149: 28 | M149: 4 | N149: 1 | O149: 0 | P149: 1520829000 | Q149: 2098 | S149: stFacultative | T149: Реклама и связи с общественностью | U149: =MATCH(D149,Отчет!#REF!,0) -> 
A150: 1629047081 | B150: 6 | C150: БРО151 | D150: 1517365582 | E150: Хохлова Наталия Алексеевна | F150: М151БМИЭФ196 | G150: Английский язык | H150: 4 | I150: Экзамен | J150: 2016/2017 учебный год 2 модуль | L150: 24 | M150: 4 | N150: 1 | O150: 0 | P150: 1520829000 | Q150: 2098 | S150: stFacultative | T150: Реклама и связи с общественностью | U150: =MATCH(D150,Отчет!#REF!,0) -> 
A151: 1629047827 | B151: 9 | C151: БРО152 | D151: 1162404939 | E151: Тузова Евгения Сергеевна | F151: М151БРИСО057 | G151: Английский язык | H151: 4 | I151: Экзамен | J151: 2016/2017 учебный год 2 модуль | L151: 36 | M151: 4 | N151: 1 | O151: 0 | P151: 1520829000 | Q151: 2098 | S151: stFacultative | T151: Реклама и связи с общественностью | U151: =MATCH(D151,Отчет!#REF!,0) -> 
A152: 1629047010 | B152: 6 | C152: БРО151 | D152: 1162404963 | E152: Ермаков Иван Григорьевич | F152: М151БРИСО017 | G152: Английский язык | H152: 4 | I152: Экзамен | J152: 2016/2017 учебный год 2 модуль | L152: 24 | M152: 4 | N152: 1 | O152: 0 | P152: 1520829000 | Q152: 2098 | S152: stFacultative | T152: Реклама и связи с общественностью | U152: =MATCH(D152,Отчет!#REF!,0) -> 
A153: 1629048155 | B153: 8 | C153: БРО153 | D153: 1162404995 | E153: Кимлык Мария Андреевна | F153: М151БРИСО022 | G153: Английский язык | H153: 4 | I153: Экзамен | J153: 2016/2017 учебный год 2 модуль | L153: 32 | M153: 4 | N153: 1 | O153: 1 | P153: 1520829000 | Q153: 2098 | S153: stFacultative | T153: Реклама и связи с общественностью | U153: =MATCH(D153,Отчет!#REF!,0) -> 
A154: 1629047094 | B154: 6 | C154: БРО151 | D154: 1162405311 | E154: Шкляр Даниэль Семенович | F154: М151БРИСО062 | G154: Английский язык | H154: 4 | I154: Экзамен | J154: 2016/2017 учебный год 2 модуль | L154: 24 | M154: 4 | N154: 1 | O154: 0 | P154: 1520829000 | Q154: 2098 | S154: stFacultative | T154: Реклама и связи с общественностью | U154: =MATCH(D154,Отчет!#REF!,0) -> 
A155: 1629048124 | B155: 10 | C155: БРО153 | D155: 1162405372 | E155: Гранина Дарья Константиновна | F155: М151БРИСО012 | G155: Английский язык | H155: 4 | I155: Экзамен | J155: 2016/2017 учебный год 2 модуль | L155: 40 | M155: 4 | N155: 1 | O155: 0 | P155: 1520829000 | Q155: 2098 | S155: stFacultative | T155: Реклама и связи с общественностью | U155: =MATCH(D155,Отчет!#REF!,0) -> 
A156: 1629048116 | B156: 4 | C156: БРО153 | D156: 1173924661 | E156: Галкин Вячеслав Владимирович | F156: М151БРИСО070 | G156: Английский язык | H156: 4 | I156: Экзамен | J156: 2016/2017 учебный год 2 модуль | L156: 16 | M156: 4 | N156: 1 | O156: 0 | P156: 1520829000 | Q156: 2098 | S156: stFacultative | T156: Реклама и связи с общественностью | U156: =MATCH(D156,Отчет!#REF!,0) -> 
A157: 1629048196 | B157: 5 | C157: БРО153 | D157: 1181080622 | E157: Нугуспанова Индира | F157: М151БРИСО075 | G157: Английский язык | H157: 4 | I157: Экзамен | J157: 2016/2017 учебный год 2 модуль | L157: 20 | M157: 4 | N157: 1 | O157: 1 | P157: 1520829000 | Q157: 2098 | S157: stFacultative | T157: Реклама и связи с общественностью | U157: =MATCH(D157,Отчет!#REF!,0) -> 
A158: 1629046989 | B158: 8 | C158: БРО151 | D158: 1181080646 | E158: Белякова Анастасия | F158: М151БРИСО079 | G158: Английский язык | H158: 4 | I158: Экзамен | J158: 2016/2017 учебный год 2 модуль | L158: 32 | M158: 4 | N158: 1 | O158: 1 | P158: 1520829000 | Q158: 2098 | S158: stFacultative | T158: Реклама и связи с общественностью | U158: =MATCH(D158,Отчет!#REF!,0) -> 
A159: 1629046993 | B159: 6 | C159: БРО151 | D159: 1181080708 | E159: Ганиева Карина Туребековна | F159: М151БРИСО081 | G159: Английский язык | H159: 4 | I159: Экзамен | J159: 2016/2017 учебный год 2 модуль | L159: 24 | M159: 4 | N159: 1 | O159: 1 | P159: 1520829000 | Q159: 2098 | S159: stFacultative | T159: Реклама и связи с общественностью | U159: =MATCH(D159,Отчет!#REF!,0) -> 
A160: 1629047049 | B160: 8 | C160: БРО151 | D160: 1181086716 | E160: Пономарева Елизавета | F160: М151БРИСО077 | G160: Английский язык | H160: 4 | I160: Экзамен | J160: 2016/2017 учебный год 2 модуль | L160: 32 | M160: 4 | N160: 1 | O160: 1 | P160: 1520829000 | Q160: 2098 | S160: stFacultative | T160: Реклама и связи с общественностью | U160: =MATCH(D160,Отчет!#REF!,0) -> 
A161: 1629048141 | B161: 6 | C161: БРО153 | D161: 1181086733 | E161: Дремлюк Марья | F161: М151БРИСО074 | G161: Английский язык | H161: 4 | I161: Экзамен | J161: 2016/2017 учебный год 2 модуль | L161: 24 | M161: 4 | N161: 1 | O161: 1 | P161: 1520829000 | Q161: 2098 | S161: stFacultative | T161: Реклама и связи с общественностью | U161: =MATCH(D161,Отчет!#REF!,0) -> 
A162: 1629047004 | B162: 4 | C162: БРО151 | D162: 1181086750 | E162: Даниленко Ярослав | F162: М151БРИСО078 | G162: Английский язык | H162: 4 | I162: Экзамен | J162: 2016/2017 учебный год 2 модуль | L162: 16 | M162: 4 | N162: 1 | O162: 1 | P162: 1520829000 | Q162: 2098 | S162: stFacultative | T162: Реклама и связи с общественностью | U162: =MATCH(D162,Отчет!#REF!,0) -> 
A163: 1629047730 | B163: 8 | C163: БРО152 | D163: 1181086767 | E163: Мухортова Дарья Александровна | F163: М151БРИСО072 | G163: Английский язык | H163: 4 | I163: Экзамен | J163: 2016/2017 учебный год 2 модуль | L163: 32 | M163: 4 | N163: 1 | O163: 1 | P163: 1520829000 | Q163: 2098 | S163: stFacultative | T163: Реклама и связи с общественностью | U163: =MATCH(D163,Отчет!#REF!,0) -> 
A164: 1629048170 | B164: 6 | C164: БРО153 | D164: 1181086818 | E164: Кунцевич Мария | F164: М151БРИСО076 | G164: Английский язык | H164: 4 | I164: Экзамен | J164: 2016/2017 учебный год 2 модуль | L164: 24 | M164: 4 | N164: 1 | O164: 1 | P164: 1520829000 | Q164: 2098 | S164: stFacultative | T164: Реклама и связи с общественностью | U164: =MATCH(D164,Отчет!#REF!,0) -> 
A165: 1629046962 | B165: 8 | C165: БРО151 | D165: 1187793549 | E165: Абдулхакимова Афина Шавкатовна | F165: М151БРИСО084 | G165: Английский язык | H165: 4 | I165: Экзамен | J165: 2016/2017 учебный год 2 модуль | L165: 32 | M165: 4 | N165: 1 | O165: 0 | P165: 1520829000 | Q165: 2098 | S165: stFacultative | T165: Реклама и связи с общественностью | U165: =MATCH(D165,Отчет!#REF!,0) -> 
A166: 1629048207 | B166: 8 | C166: БРО153 | D166: 1162404387 | E166: Скворцова Анна Алексеевна | F166: М151БРИСО050 | G166: Английский язык | H166: 4 | I166: Экзамен | J166: 2016/2017 учебный год 2 модуль | L166: 32 | M166: 4 | N166: 1 | O166: 0 | P166: 1520829000 | Q166: 2098 | S166: stFacultative | T166: Реклама и связи с общественностью | U166: =MATCH(D166,Отчет!#REF!,0) -> 
A167: 1629047041 | B167: 8 | C167: БРО151 | D167: 1162404411 | E167: Надирова Анна Зурабовна | F167: М151БРИСО035 | G167: Английский язык | H167: 4 | I167: Экзамен | J167: 2016/2017 учебный год 2 модуль | L167: 32 | M167: 4 | N167: 1 | O167: 0 | P167: 1520829000 | Q167: 2098 | S167: stFacultative | T167: Реклама и связи с общественностью | U167: =MATCH(D167,Отчет!#REF!,0) -> 
A168: 1629047694 | B168: 7 | C168: БРО152 | D168: 1162404435 | E168: Захряпина Анастасия Алексеевна | F168: М151БРИСО018 | G168: Английский язык | H168: 4 | I168: Экзамен | J168: 2016/2017 учебный год 2 модуль | L168: 28 | M168: 4 | N168: 1 | O168: 0 | P168: 1520829000 | Q168: 2098 | S168: stFacultative | T168: Реклама и связи с общественностью | U168: =MATCH(D168,Отчет!#REF!,0) -> 
A169: 1629048232 | B169: 7 | C169: БРО153 | D169: 1162404495 | E169: Юрьева Мария Дмитриевна | F169: М151БРИСО065 | G169: Английский язык | H169: 4 | I169: Экзамен | J169: 2016/2017 учебный год 2 модуль | L169: 28 | M169: 4 | N169: 1 | O169: 0 | P169: 1520829000 | Q169: 2098 | S169: stFacultative | T169: Реклама и связи с общественностью | U169: =MATCH(D169,Отчет!#REF!,0) -> 
A170: 1629047776 | B170: 6 | C170: БРО152 | D170: 1162404529 | E170: Радионова Анна Евгеньевна | F170: М151БРИСО043 | G170: Английский язык | H170: 4 | I170: Экзамен | J170: 2016/2017 учебный год 2 модуль | L170: 24 | M170: 4 | N170: 1 | O170: 1 | P170: 1520829000 | Q170: 2098 | S170: stFacultative | T170: Реклама и связи с общественностью | U170: =MATCH(D170,Отчет!#REF!,0) -> 
A171: 1629048228 | B171: 10 | C171: БРО153 | D171: 1162404559 | E171: Щелкунов Игорь Владимирович | F171: М151БРИСО064 | G171: Английский язык | H171: 4 | I171: Экзамен | J171: 2016/2017 учебный год 2 модуль | L171: 40 | M171: 4 | N171: 1 | O171: 0 | P171: 1520829000 | Q171: 2098 | S171: stFacultative | T171: Реклама и связи с общественностью | U171: =MATCH(D171,Отчет!#REF!,0) -> 
A172: 1629046966 | B172: 8 | C172: БРО151 | D172: 1162404590 | E172: Аккалаев Марат Русланович | F172: М151БРИСО002 | G172: Английский язык | H172: 4 | I172: Экзамен | J172: 2016/2017 учебный год 2 модуль | L172: 32 | M172: 4 | N172: 1 | O172: 0 | P172: 1520829000 | Q172: 2098 | S172: stFacultative | T172: Реклама и связи с общественностью | U172: =MATCH(D172,Отчет!#REF!,0) -> 
A173: 1629048145 | B173: 6 | C173: БРО153 | D173: 1162404615 | E173: Дроздова Елизавета Владимировна | F173: М151БРИСО016 | G173: Английский язык | H173: 4 | I173: Экзамен | J173: 2016/2017 учебный год 2 модуль | L173: 24 | M173: 4 | N173: 1 | O173: 0 | P173: 1520829000 | Q173: 2098 | S173: stFacultative | T173: Реклама и связи с общественностью | U173: =MATCH(D173,Отчет!#REF!,0) -> 
A174: 1629047753 | B174: 6 | C174: БРО152 | D174: 1162404639 | E174: Полякова Александра Дмитриевна | F174: М151БРИСО041 | G174: Английский язык | H174: 4 | I174: Экзамен | J174: 2016/2017 учебный год 2 модуль | L174: 24 | M174: 4 | N174: 1 | O174: 0 | P174: 1520829000 | Q174: 2098 | S174: stFacultative | T174: Реклама и связи с общественностью | U174: =MATCH(D174,Отчет!#REF!,0) -> 
A175: 1629047835 | B175: 5 | C175: БРО152 | D175: 1162404671 | E175: Фролов Василий Александрович | F175: М151БРИСО060 | G175: Английский язык | H175: 4 | I175: Экзамен | J175: 2016/2017 учебный год 2 модуль | L175: 20 | M175: 4 | N175: 1 | O175: 0 | P175: 1520829000 | Q175: 2098 | S175: stFacultative | T175: Реклама и связи с общественностью | U175: =MATCH(D175,Отчет!#REF!,0) -> 
A176: 1629047037 | B176: 8 | C176: БРО151 | D176: 1162404699 | E176: Милова Анастасия Андреевна | F176: М151БРИСО033 | G176: Английский язык | H176: 4 | I176: Экзамен | J176: 2016/2017 учебный год 2 модуль | L176: 32 | M176: 4 | N176: 1 | O176: 0 | P176: 1520829000 | Q176: 2098 | S176: stFacultative | T176: Реклама и связи с общественностью | U176: =MATCH(D176,Отчет!#REF!,0) -> 
A177: 1629047785 | B177: 7 | C177: БРО152 | D177: 1162404727 | E177: Сак Евгения Леонидовна | F177: М151БРИСО047 | G177: Английский язык | H177: 4 | I177: Экзамен | J177: 2016/2017 учебный год 2 модуль | L177: 28 | M177: 4 | N177: 1 | O177: 0 | P177: 1520829000 | Q177: 2098 | S177: stFacultative | T177: Реклама и связи с общественностью | U177: =MATCH(D177,Отчет!#REF!,0) -> 
A178: 1629047736 | B178: 8 | C178: БРО152 | D178: 1162404759 | E178: Нафталиева Яна Абрамовна | F178: М151БРИСО036 | G178: Английский язык | H178: 4 | I178: Экзамен | J178: 2016/2017 учебный год 2 модуль | L178: 32 | M178: 4 | N178: 1 | O178: 0 | P178: 1520829000 | Q178: 2098 | S178: stFacultative | T178: Реклама и связи с общественностью | U178: =MATCH(D178,Отчет!#REF!,0) -> 
A179: 1629048201 | B179: 4 | C179: БРО153 | D179: 1162404783 | E179: Поляков Илья Станиславович | F179: М151БРИСО040 | G179: Английский язык | H179: 4 | I179: Экзамен | J179: 2016/2017 учебный год 2 модуль | L179: 16 | M179: 4 | N179: 1 | O179: 0 | P179: 1520829000 | Q179: 2098 | S179: stFacultative | T179: Реклама и связи с общественностью | U179: =MATCH(D179,Отчет!#REF!,0) -> 
A180: 1629047817 | C180: БРО152 | D180: 1162404815 | E180: Тихонина Мария Игоревна | F180: М151БРИСО054 | G180: Английский язык | H180: 4 | I180: Экзамен | J180: 2016/2017 учебный год 2 модуль | K180: 0 | L180: 0 | M180: 4 | O180: 0 | P180: 1520829000 | Q180: 2098 | S180: stFacultative | T180: Реклама и связи с общественностью | U180: =MATCH(D180,Отчет!#REF!,0) -> 
A181: 1629046997 | B181: 6 | C181: БРО151 | D181: 1162404843 | E181: Даниель Александра Александровна | F181: М151БРИСО014 | G181: Английский язык | H181: 4 | I181: Экзамен | J181: 2016/2017 учебный год 2 модуль | L181: 24 | M181: 4 | N181: 1 | O181: 0 | P181: 1520829000 | Q181: 2098 | S181: stFacultative | T181: Реклама и связи с общественностью | U181: =MATCH(D181,Отчет!#REF!,0) -> 
A182: 1629048191 | B182: 8 | C182: БРО153 | D182: 1162404875 | E182: Никоненко Анастасия Германовна | F182: М151БРИСО038 | G182: Английский язык | H182: 4 | I182: Экзамен | J182: 2016/2017 учебный год 2 модуль | L182: 32 | M182: 4 | N182: 1 | O182: 0 | P182: 1520829000 | Q182: 2098 | S182: stFacultative | T182: Реклама и связи с общественностью | U182: =MATCH(D182,Отчет!#REF!,0) -> 
A183: 1629048213 | B183: 9 | C183: БРО153 | D183: 1162402110 | E183: Сковородина Елизавета Сергеевна | F183: М151БРИСО051 | G183: Английский язык | H183: 4 | I183: Экзамен | J183: 2016/2017 учебный год 2 модуль | L183: 36 | M183: 4 | N183: 1 | O183: 1 | P183: 1520829000 | Q183: 2098 | S183: stFacultative | T183: Реклама и связи с общественностью | U183: =MATCH(D183,Отчет!#REF!,0) -> 
A184: 1629047033 | B184: 10 | C184: БРО151 | D184: 1162402136 | E184: Мазур Екатерина Сергеевна | F184: М151БРИСО031 | G184: Английский язык | H184: 4 | I184: Экзамен | J184: 2016/2017 учебный год 2 модуль | L184: 40 | M184: 4 | N184: 1 | O184: 1 | P184: 1520829000 | Q184: 2098 | S184: stFacultative | T184: Реклама и связи с общественностью | U184: =MATCH(D184,Отчет!#REF!,0) -> 
A185: 1629047793 | B185: 8 | C185: БРО152 | D185: 1162402160 | E185: Серегин Геннадий Евгеньевич | F185: М151БРИСО048 | G185: Английский язык | H185: 4 | I185: Экзамен | J185: 2016/2017 учебный год 2 модуль | L185: 32 | M185: 4 | N185: 1 | O185: 1 | P185: 1520829000 | Q185: 2098 | S185: stFacultative | T185: Реклама и связи с общественностью | U185: =MATCH(D185,Отчет!#REF!,0) -> 
A186: 1629048175 | B186: 10 | C186: БРО153 | D186: 1162402188 | E186: Курганова Диана Андреевна | F186: М151БРИСО028 | G186: Английский язык | H186: 4 | I186: Экзамен | J186: 2016/2017 учебный год 2 модуль | L186: 40 | M186: 4 | N186: 1 | O186: 1 | P186: 1520829000 | Q186: 2098 | S186: stFacultative | T186: Реклама и связи с общественностью | U186: =MATCH(D186,Отчет!#REF!,0) -> 
A187: 1629048120 | B187: 6 | C187: БРО153 | D187: 1162402220 | E187: Горохова Елизавета Юрьевна | F187: М151БРИСО011 | G187: Английский язык | H187: 4 | I187: Экзамен | J187: 2016/2017 учебный год 2 модуль | L187: 24 | M187: 4 | N187: 1 | O187: 1 | P187: 1520829000 | Q187: 2098 | S187: stFacultative | T187: Реклама и связи с общественностью | U187: =MATCH(D187,Отчет!#REF!,0) -> 
A188: 1629047765 | B188: 8 | C188: БРО152 | D188: 1162402244 | E188: Попова Диана Александровна | F188: М151БРИСО042 | G188: Английский язык | H188: 4 | I188: Экзамен | J188: 2016/2017 учебный год 2 модуль | L188: 32 | M188: 4 | N188: 1 | O188: 1 | P188: 1520829000 | Q188: 2098 | S188: stFacultative | T188: Реклама и связи с общественностью | U188: =MATCH(D188,Отчет!#REF!,0) -> 
A189: 1629048224 | B189: 8 | C189: БРО153 | D189: 1162402268 | E189: Шельменкина Карина Сергеевна | F189: М151БРИСО061 | G189: Английский язык | H189: 4 | I189: Экзамен | J189: 2016/2017 учебный год 2 модуль | L189: 32 | M189: 4 | N189: 1 | O189: 1 | P189: 1520829000 | Q189: 2098 | S189: stFacultative | T189: Реклама и связи с общественностью | U189: =MATCH(D189,Отчет!#REF!,0) -> 
A190: 1629046978 | B190: 8 | C190: БРО151 | D190: 1162402300 | E190: Барыкина Александра Сергеевна | F190: М151БРИСО006 | G190: Английский язык | H190: 4 | I190: Экзамен | J190: 2016/2017 учебный год 2 модуль | L190: 32 | M190: 4 | N190: 1 | O190: 1 | P190: 1520829000 | Q190: 2098 | S190: stFacultative | T190: Реклама и связи с общественностью | U190: =MATCH(D190,Отчет!#REF!,0) -> 
A191: 1629047017 | B191: 9 | C191: БРО151 | D191: 1162402324 | E191: Казакова Виктория Владимировна | F191: М151БРИСО019 | G191: Английский язык | H191: 4 | I191: Экзамен | J191: 2016/2017 учебный год 2 модуль | L191: 36 | M191: 4 | N191: 1 | O191: 1 | P191: 1520829000 | Q191: 2098 | S191: stFacultative | T191: Реклама и связи с общественностью | U191: =MATCH(D191,Отчет!#REF!,0) -> 
A192: 1629047719 | B192: 6 | C192: БРО152 | D192: 1162402352 | E192: Криницкая Анастасия Сергеевна | F192: М151БРИСО027 | G192: Английский язык | H192: 4 | I192: Экзамен | J192: 2016/2017 учебный год 2 модуль | L192: 24 | M192: 4 | N192: 1 | O192: 1 | P192: 1520829000 | Q192: 2098 | S192: stFacultative | T192: Реклама и связи с общественностью | U192: =MATCH(D192,Отчет!#REF!,0) -> 
A193: 1629047057 | B193: 7 | C193: БРО151 | D193: 1162402384 | E193: Садова Анастасия Романовна | F193: М151БРИСО046 | G193: Английский язык | H193: 4 | I193: Экзамен | J193: 2016/2017 учебный год 2 модуль | L193: 28 | M193: 4 | N193: 1 | O193: 1 | P193: 1520829000 | Q193: 2098 | S193: stFacultative | T193: Реклама и связи с общественностью | U193: =MATCH(D193,Отчет!#REF!,0) -> 
A194: 1629047053 | B194: 6 | C194: БРО151 | D194: 1162402412 | E194: Романовская Алина Андреевна | F194: М151БРИСО045 | G194: Английский язык | H194: 4 | I194: Экзамен | J194: 2016/2017 учебный год 2 модуль | L194: 24 | M194: 4 | N194: 1 | O194: 1 | P194: 1520829000 | Q194: 2098 | S194: stFacultative | T194: Реклама и связи с общественностью | U194: =MATCH(D194,Отчет!#REF!,0) -> 
A195: 1629048160 | B195: 6 | C195: БРО153 | D195: 1162402641 | E195: Ковтун Юлия Алексеевна | F195: М151БРИСО023 | G195: Английский язык | H195: 4 | I195: Экзамен | J195: 2016/2017 учебный год 2 модуль | L195: 24 | M195: 4 | N195: 1 | O195: 1 | P195: 1520829000 | Q195: 2098 | S195: stFacultative | T195: Реклама и связи с общественностью | U195: =MATCH(D195,Отчет!#REF!,0) -> 
A196: 1629048236 | B196: 9 | C196: БРО153 | D196: 1162402673 | E196: Язькова Елизавета Алексеевна | F196: М151БРИСО066 | G196: Английский язык | H196: 4 | I196: Экзамен | J196: 2016/2017 учебный год 2 модуль | L196: 36 | M196: 4 | N196: 1 | O196: 1 | P196: 1520829000 | Q196: 2098 | S196: stFacultative | T196: Реклама и связи с общественностью | U196: =MATCH(D196,Отчет!#REF!,0) -> 
A197: 1649567058 | B197: 10 | C197: БРО153 | D197: 1649552778 | E197: Редин Виталий Вадимович | F197: 13151222 | G197: Астрофизика | H197: 5 | I197: Экзамен | J197: 2016/2017 учебный год 2 модуль | L197: 50 | M197: 5 | N197: 1 | O197: 0 | P197: 1520973680 | Q197: 2098 | R197: ikPlanned | S197: stChoosen | T197: Реклама и связи с общественностью | U197: =MATCH(D197,Отчет!#REF!,0) -> 
A198: 1546142500 | B198: 6 | C198: БРО151 | D198: 1181086716 | E198: Пономарева Елизавета | F198: М151БРИСО077 | G198: Введение в программирование | H198: 5 | I198: Экзамен | J198: 2016/2017 учебный год 2 модуль | L198: 30 | M198: 5 | N198: 1 | O198: 1 | P198: 1520574806 | Q198: 2098 | S198: stChoosen | T198: Реклама и связи с общественностью | U198: =MATCH(D198,Отчет!#REF!,0) -> 
A199: 1623504744 | B199: 5 | C199: БРО151 | D199: 1516201234 | E199: Чернышева Юлия Ивановна | F199: М151БЛУЦП132 | G199: Введение в специальность | H199: 5 | I199: Экзамен | J199: 2016/2017 учебный год 2 модуль | L199: 25 | M199: 5 | N199: 1 | O199: 0 | P199: 1520802210 | Q199: 2098 | R199: ikFirst | S199: stCommon | T199: Реклама и связи с общественностью | U199: =MATCH(D199,Отчет!#REF!,0) -> 
A200: 1667406028 | B200: 2 | C200: БРО153 | D200: 1667389090 | E200: Кармазинский Николай Андреевич | F200: М161БРИСО394 | G200: Введение в специальность | H200: 5 | I200: Экзамен | J200: 2016/2017 учебный год 2 модуль | L200: 0 | M200: 5 | N200: 0 | O200: 0 | P200: 1520802210 | Q200: 2098 | R200: ikFirst | S200: stCommon | T200: Реклама и связи с общественностью | U200: =MATCH(D200,Отчет!#REF!,0) -> 
... 662 more rows
